{"text_format":"1","workbook":"xlsx","n_sheets":14,"sheets":["Grant Instructions","General Information","Other Funding Sources","Sustainability Narrative","Personnel Request","Contract Services Request","Drug Testing Supplies","Non-Drug Testing Supplies","Equipment","Training & Travel","Transportation Narrative","Transportation Request","Court Narrative","Court Merge"],"not_rendered":{"charts":0,"images":0,"macros":1,"external_links":0,"defined_names":18,"comments":0,"pivot_tables":0},"unopened":[],"bounds":{"document_bytes":16777216,"sheet_cells":100000,"rows_first":2000,"rows_last":500,"rows_between":2000,"halvings":0,"cell_chars":16384,"cell_head_chars":4096},"cells_cut":0,"cells_raw":0,"read":"whole","date_system":"1900"}

{"sheet":"Grant Instructions","index":0,"n_rows":0,"n_cols":0,"rows_kept":0,"cut":false,"hidden":false,"merged":[]}

{"sheet":"General Information","index":1,"n_rows":134,"n_cols":14,"rows_kept":134,"cut":false,"hidden":false,"merged":[[1,2,1,5],[21,2,21,5],[13,2,13,5],[22,2,22,5],[7,2,7,3],[9,2,9,3],[11,2,11,3],[15,2,15,3],[17,2,17,3],[19,2,19,3]]}
[null,null,null,null,null,null,null,null,null,null,"Select One:","Select One:",null,"Select One:"]
[null,null,"General Information ",null,null,null,null,null,null,null,"Alapaha","Alapaha Circuit Drug Court",null,"Superior "]
[null,null,null,null,null,null,null,null,null,null,"Alcovy","Appalachian Judicial Circuit Drug Court",null,"State"]
[null,"Name of person filling out this form:",null,"Email address:",null,"Phone:",null,null,null,null,"Appalachian","Appalachian Judicial Circuit Veterans",null,"Juvenile"]
[null,null,null,null,null,null,null,null,null,null,"Atlanta","Appalachian Judicial FDTC"]
[null,null,"On April 20 - 21, 2017 who will be available to answer questions on this grant, if the committee shall have any?",null,"Please provide a phone number for this person: ",null,null,null,null,null,"Atlantic","Appalachian Judicial Mental Health Drug Court",null,"Select One: "]
[null,null,null,null,null,null,null,null,null,null,"Augusta","Appalachian Juvenile Court",null,"Adult Felony Drug Court"]
[null,null,"From the list below, please select your court name. If you are submitting a budget for an implementation court, please scroll to the end of the list and select \"Implementation Court\". To make multiple selections from the Court Name dropdown, click the dropdown arrow each time you want to make a new selection in a particular cell. E.G. if you have 3 Adult Drug Courts in your circuit, click the arrow in the \"Court Name\" for that row 3 times and select a different court with each click. ",null,"Select One:",null,null,null,null,null,"Bell Forsyth","Athens - Clarke County DUI Court",null,"Adult Mental Health Court"]
[null,null,null,null,null,null,null,null,null,null,"Blue Ridge","Athens-Clarke County Treatment and Accountability Court",null,"DUI Court"]
[null,null,"Please enter your implementation court's name: ",null,null,null,null,null,null,null,"Brunswick","Athens-Clarke FDTC",null,"Family Dependency Treatment Court"]
[null,null,null,null,null,null,null,null,null,null,"Chattahoochee","Atlantic Judicial Circuit Drug Court",null,"Juvenile Drug Court"]
[null,null,"Please select the Judicial Circuit in which your court is operating: ",null,"Select One:",null,null,null,null,null,"Cherokee","Atlantic Judicial Circuit Veterans",null,"Juvenile Mental Health Court"]
[null,null,null,null,null,null,null,null,null,null,"Clayton","Augusta Judicial Circuit Drug Court",null,"Veterans Court"]
[null,null,"NOTE: Program is defined by the type of offender population your court primarily serves and the standards associated with serving that population - i.e. substance dependent, mentally ill, veterans, those with a history of DUI, families with substance dependence or mental illness, substance dependent juveniles, or mentally ill juveniles.",null,null,null,null,null,null,null,"Cobb","Augusta Judicial Circuit Mental Health Court"]
[null,null,null,null,null,null,null,null,null,null,"Conasauga","Augusta Judicial Circuit Veterans Court"]
[null,null,"Please select the primary program your accountability court offers. ",null,"Select One: ",null,null,null,null,null,"Cordele","Baldwin County FDTC"]
[null,null,null,null,null,null,null,null,null,null,"Coweta","Barrow County Adult Felony Drug Court"]
[null,null,"Please select the secondary program (if any) that your accountability court offers. ",null,"Select One: ",null,null,null,null,null,"Dougherty","Bibb County Mental Health Court"]
[null,null,null,null,null,null,null,null,null,null,"Douglas","Blue Ridge Judicial Circuit Drug Court"]
[null,null,"Please select your court level. ",null,"Select One:",null,null,null,null,null,"Dublin","Brunswick Judicial Drug Court"]
[null,null,null,null,null,null,null,null,null,null,"Eastern","Bulloch County Accountability Court"]
[null,null,"Total Requested Funds",null,null,null,null,null,null,null,"Enotah","Carroll County Drug Court"]
[null,null,"Please note, the Requested Funds and Total Budgeted Amount will automatically calculate and popuate based on your entries in other tabs. You will need to indicate the Matched Funds manually. ",null,null,null,null,null,null,null,"Flint","Chatham County DUI Court"]
[null,null,null,null,null,null,null,null,null,null,"Forsyth","Chatham-Savannah Veterans Treatment Court"]
[null,null,null,null,null,null,null,null,null,null,"Griffin","Cherokee County DUI Court"]
[null,null,null,"Requested Funds","Matched Funds","Total Budgeted Amount",null,null,null,null,"Gwinnett","Cherokee County MISD Court"]
[null,null,null,null,null,null,null,null,null,null,"Houston","Clayton County Drug Court"]
[null,null,"Personnel",{"$f":"'Personnel Request'!N20","v":0},0,{"$f":"SUM(D28:E28)","v":0},null,null,null,null,"Lookout Mountain","Clayton County DUI Court"]
[null,null,null,null,null,null,null,null,null,null,"Macon","Cobb County Drug Court"]
[null,null,"Contract Services",{"$f":"'Contract Services Request'!M14","v":0},0,{"$f":"SUM(D30:E30)","v":0},null,null,null,null,"Middle","Cobb County DUI Court"]
[null,null,null,null,null,null,null,null,null,null,"Mountain","Cobb County FDTC"]
[null,null,"Drug Testing Supplies",{"$f":"'Drug Testing Supplies'!N8","v":0},0,{"$f":"SUM(D32:E32)","v":0},null,null,null,null,"Northern","Cobb County Juvenile Court"]
[null,null,null,null,null,null,null,null,null,null,"Northeastern","Cobb County Mental Health Court"]
[null,null,"Non-Drug Testing Supplies",{"$f":"'Non-Drug Testing Supplies'!I5","v":0},0,{"$f":"SUM(D34:E34)","v":0},null,null,null,null,"Ocmulgee","Cobb County Veterans Court"]
[null,null,null,null,null,null,null,null,null,null,"Oconee","Colquitt SA/MH Court"]
[null,null,"Equipment",{"$f":"Equipment!J4","v":0},0,{"$f":"SUM(D36:E36)","v":0},null,null,null,null,"Ogeechee","Conasauga Drug Court"]
[null,null,null,null,null,null,null,null,null,null,"Pataula","Coweta County Adult Felony Drug Court"]
[null,null,"Training & Travel",{"$f":"'Training & Travel'!O7","v":0},0,{"$f":"SUM(D38:E38)","v":0},null,null,null,null,"Paulding","Coweta County DUI Court"]
[null,null,null,null,null,null,null,null,null,null,"Piedmont","Coweta County FDTC"]
[null,null,"Transportation ",{"$f":"'Transportation Request'!M6","v":0},0,{"$f":"SUM(D40:E40)","v":0},null,null,null,null,"Rockdale","Coweta County Veterans Court"]
[null,null,null,null,null,null,null,null,null,null,"Rome","Crisp County Adult Felony Drug Court"]
[null,null,null,null,null,null,null,null,null,null,"South Georgia","Dawson County HELP Court"]
[null,null,"Total CACJ Funds",{"$f":"SUM(D28,D30,D32,D34,D36,D38,D40)","v":0},"Total Other Funds",{"$f":"'Other Funding Sources'!L6","v":0},null,null,null,null,"Southern","Dawson County Treatment Court"]
[null,null,null,null,null,null,null,null,null,null,"Southwestern","DeKalb County Drug Court"]
[null,null,null,null,null,null,null,null,null,null,"Stone Mountain","DeKalb County DUI Court"]
[null,null,null,null,null,null,null,null,null,null,"Tallapoosa","DeKalb County Juvenile Court"]
[null,null,null,null,null,null,null,null,null,null,"Tifton","DeKalb County Superior Mental Health Court"]
[null,null,null,null,null,null,null,null,null,null,"Toombs","DeKalb County Veterans Court"]
[null,null,null,null,null,null,null,null,null,null,"Towaliga","DeKalb Juvenile Journey MH Court"]
[null,null,null,null,null,null,null,null,null,null,"Waycross","Dougherty County MH/SA Court"]
[null,null,null,null,null,null,null,null,null,null,"Western","Douglas Circuit Felony Accountability Court"]
[null,null,null,null,null,null,null,null,null,null,null,"Douglas County DUI Court"]
[null,null,null,null,null,null,null,null,null,null,null,"Douglas County FDTC"]
[null,null,null,null,null,null,null,null,null,null,null,"Dublin Mental Health/Veterans Court"]
[null,null,null,null,null,null,null,null,null,null,null,"Enotah Drug Court (North)"]
[null,null,null,null,null,null,null,null,null,null,null,"Enotah Drug Court (South)"]
[null,null,null,null,null,null,null,null,null,null,null,"Enotah FDTC"]
[null,null,null,null,null,null,null,null,null,null,null,"Enotah Mental Health Court"]
[null,null,null,null,null,null,null,null,null,null,null,"Fayette County DUI Court"]
[null,null,null,null,null,null,null,null,null,null,null,"Forsyth County Drug Court"]
[null,null,null,null,null,null,null,null,null,null,null,"Forsyth County DUI Court"]
[null,null,null,null,null,null,null,null,null,null,null,"Forsyth County Juvenile Court"]
[null,null,null,null,null,null,null,null,null,null,null,"Forsyth Mental Health Court"]
[null,null,null,null,null,null,null,null,null,null,null,"Fulton County Accountability Court"]
[null,null,null,null,null,null,null,null,null,null,null,"Fulton County DUI Court"]
[null,null,null,null,null,null,null,null,null,null,null,"Fulton County FDTC"]
[null,null,null,null,null,null,null,null,null,null,null,"Fulton County Juvenile Court"]
[null,null,null,null,null,null,null,null,null,null,null,"Fulton County Juvenile MH Court"]
[null,null,null,null,null,null,null,null,null,null,null,"Fulton County Mental Health Court"]
[null,null,null,null,null,null,null,null,null,null,null,"Fulton Veterans Court"]
[null,null,null,null,null,null,null,null,null,null,null,"Griffin Judicial Circuit Drug Court"]
[null,null,null,null,null,null,null,null,null,null,null,"Gwinnett County Drug Court"]
[null,null,null,null,null,null,null,null,null,null,null,"Gwinnett County DUI Court"]
[null,null,null,null,null,null,null,null,null,null,null,"Gwinnett County Mental Health Court"]
[null,null,null,null,null,null,null,null,null,null,null,"Gwinnett County Veterans Court"]
[null,null,null,null,null,null,null,null,null,null,null,"Gwinnett Juvenile Court"]
[null,null,null,null,null,null,null,null,null,null,null,"Hall County Adult Felony Court"]
[null,null,null,null,null,null,null,null,null,null,null,"Hall County DUI Court"]
[null,null,null,null,null,null,null,null,null,null,null,"Hall County Felony Probation Court"]
[null,null,null,null,null,null,null,null,null,null,null,"Hall County FTC"]
[null,null,null,null,null,null,null,null,null,null,null,"Hall County HELP Court"]
[null,null,null,null,null,null,null,null,null,null,null,"Hall County State veterans Court"]
[null,null,null,null,null,null,null,null,null,null,null,"Henry County Adult Felony Drug Court"]
[null,null,null,null,null,null,null,null,null,null,null,"Henry County DUI Court"]
[null,null,null,null,null,null,null,null,null,null,null,"Henry County Juvenile MH Court"]
[null,null,null,null,null,null,null,null,null,null,null,"Henry County Resource Court"]
[null,null,null,null,null,null,null,null,null,null,null,"Houston Mental Health Court"]
[null,null,null,null,null,null,null,null,null,null,null,"Jackson County Drug Court"]
[null,null,null,null,null,null,null,null,null,null,null,"Jefferson County Adult Drug Court"]
[null,null,null,null,null,null,null,null,null,null,null,"Liberty County DUI Court"]
[null,null,null,null,null,null,null,null,null,null,null,"Lowndes County DUI Court"]
[null,null,null,null,null,null,null,null,null,null,null,"Lowndes County Treatment Court"]
[null,null,null,null,null,null,null,null,null,null,null,"Macon - Bibb County Veterans Treatment Court"]
[null,null,null,null,null,null,null,null,null,null,null,"Macon-Bibb County Adult Drug Court"]
[null,null,null,null,null,null,null,null,null,null,null,"Mountain Judicial Circuit Drug Court"]
[null,null,null,null,null,null,null,null,null,null,null,"Mountain Judicial FTC"]
[null,null,null,null,null,null,null,null,null,null,null,"Muscogee County Adult Felony Drug Court"]
[null,null,null,null,null,null,null,null,null,null,null,"Muscogee County Juvenile Court"]
[null,null,null,null,null,null,null,null,null,null,null,"Muscogee County Mental Health Court"]
[null,null,null,null,null,null,null,null,null,null,null,"Muscogee County Veterans Court"]
[null,null,null,null,null,null,null,null,null,null,null,"Newton County Adult Felony Drug Court"]
[null,null,null,null,null,null,null,null,null,null,null,"Newton County Veterans Court"]
[null,null,null,null,null,null,null,null,null,null,null,"Newton Juvenile Court"]
[null,null,null,null,null,null,null,null,null,null,null,"Newton/Walton County Mental Health Court"]
[null,null,null,null,null,null,null,null,null,null,null,"Northern Circuit Drug Court"]
[null,null,null,null,null,null,null,null,null,null,null,"Ocmulgee Circuit ATCC MH Court"]
[null,null,null,null,null,null,null,null,null,null,null,"Ocmulgee Circuit ATCC: Substance Abuse Division"]
[null,null,null,null,null,null,null,null,null,null,null,"Pataula Judicial Circuit Drug Court"]
[null,null,null,null,null,null,null,null,null,null,null,"Paulding Circuit Drug Court"]
[null,null,null,null,null,null,null,null,null,null,null,"Piedmont Circuit Mental Health Court"]
[null,null,null,null,null,null,null,null,null,null,null,"Richmond County State Acct Court"]
[null,null,null,null,null,null,null,null,null,null,null,"Richmond County State Veterans Court"]
[null,null,null,null,null,null,null,null,null,null,null,"Rockdale County Adult Drug Court"]
[null,null,null,null,null,null,null,null,null,null,null,"Rockdale County DUI Court"]
[null,null,null,null,null,null,null,null,null,null,null,"Rockdale County Juvenile Court"]
[null,null,null,null,null,null,null,null,null,null,null,"Rockdale County Mental Health Court"]
[null,null,null,null,null,null,null,null,null,null,null,"Rome Circuit Mental Health Court"]
[null,null,null,null,null,null,null,null,null,null,null,"Savannah-Chatham County Drug Court"]
[null,null,null,null,null,null,null,null,null,null,null,"Savannah-Chatham Mental Health Court"]
[null,null,null,null,null,null,null,null,null,null,null,"South Georgia Judicial Circuit Drug Court"]
[null,null,null,null,null,null,null,null,null,null,null,"Southwestern Drug Court"]
[null,null,null,null,null,null,null,null,null,null,null,"Tallapoosa Circuit Drug Court"]
[null,null,null,null,null,null,null,null,null,null,null,"Tallapoosa Circuit Mental Health Court"]
[null,null,null,null,null,null,null,null,null,null,null,"Tift County Adult Felony Drug Court"]
[null,null,null,null,null,null,null,null,null,null,null,"Tift County DUI Court"]
[null,null,null,null,null,null,null,null,null,null,null,"Toombs Circuit Drug Court"]
[null,null,null,null,null,null,null,null,null,null,null,"Towaliga Accountability Court"]
[null,null,null,null,null,null,null,null,null,null,null,"Troup County Adult  Drug Court"]
[null,null,null,null,null,null,null,null,null,null,null,"Troup County Adult Mental Health Court"]
[null,null,null,null,null,null,null,null,null,null,null,"Troup County DUI/Drug Court"]
[null,null,null,null,null,null,null,null,null,null,null,"Waycross Judicial Circuit Drug Court"]
[null,null,null,null,null,null,null,null,null,null,null,"Western Judicial Circuit Drug Court"]
[null,null,null,null,null,null,null,null,null,null,null,"Western Judicial Circuit Veterans Court"]
[null,null,null,null,null,null,null,null,null,null,null,"NEW Implementation Court"]

{"sheet":"Other Funding Sources","index":2,"n_rows":34,"n_cols":12,"rows_kept":34,"cut":false,"hidden":false,"merged":[[1,1,1,4],[3,1,3,4]]}
[]
[null,"Other Funding Sources"]
[]
[null,"This sheet is meant to provide CACJ with a sense of how sustainable your court program is. Please list the amount your court received from other fund sources for programming and expenses in the previous STATE Fiscal Year. All funds reported here should be NON_CACJ funding. To make multiple selections from the \"How Funds are Used?\" dropdown, click the dropdown arrow each time you want to make a new selection in a particular cell. E.G. if you use Bryne-JAG for Personnel, Treatment, and Office Supplies, click the arrow in the \"How Funds are Used?\" for that row 3 times and select a different category with each click. "]
[]
[null,"Fund Source","Total Annual Funds","How Funds are Used?","Fund Source End Date? (If applicable)",null,null,"Select All Applicable: ",null,null,"Other Funding Sources",{"$f":"SUM(C8,C10,C12,C14,C16,C18,C20,C22,C24,C26,C28,C30,C32,C34)","v":0}]
[null,null,null,null,null,null,null,"Drug Testing"]
[null,"Byrne-JAG Funding",0,null,null,null,null,"Equipment"]
[null,null,null,null,null,null,null,"Evaluation"]
[null,"Community Service Boards",0,null,null,null,null,"Office Supplies"]
[null,null,null,null,null,null,null,"Personnel"]
[null,"DATE Fund",0,null,null,null,null,"Travel/Training"]
[null,null,null,null,null,null,null,"Treatment"]
[null,"Financial Donations",0,null,null,null,null,"All of the above"]
[]
[null,"Governor's Office of Highway Safety",0]
[]
[null,"Independent 501(c )3",0]
[]
[null,"Juvenile Justice Incentive Grant",0]
[]
[null,"Local Government (Municipal or County)",0]
[]
[null,"non-JAG BJA funds",0]
[]
[null,"Participant Fees",0]
[]
[null,"Private Foundation Grant",0]
[]
[null,"Revenue from Lab",0]
[]
[null,"SAMHSA",0]
[]
[null,"All other non-CACJ Funds",0]

{"sheet":"Sustainability Narrative","index":3,"n_rows":4,"n_cols":2,"rows_kept":4,"cut":false,"hidden":false,"merged":[[1,1,1,5],[3,1,3,5]]}
[]
[null,"Sustainability Narrative"]
[]
[null,"Describe your courts Sustainability Plan: All applicants should answer. Accountability Courts, new and existing, should begin working towards sustainability upon the inception of the program. It is prudent for a court to consider various methods of funding in the event that grant funds are not available. Your sustainability plan, which may include an action plan to attain funding without the use of grant funds, should be fully described. "]

{"sheet":"Personnel Request","index":4,"n_rows":58,"n_cols":14,"rows_kept":58,"cut":false,"hidden":false,"merged":[[1,1,1,7],[3,1,3,7]]}
[]
[null,"Personnel Request"]
[]
[null,"Instructions: Please report the Weeks and Hours worked only for the percentage of time that you are requesting. That is, if a staff member is full time, but you are only requesting a portion of their salary, report only the hours and weeks for which you are requesting funds. Benefits will be calculated based on the salary amount requested. If a position title is not available in the drop down list, this is not an allowable position with CACJ grant funds. Please remember to update your Matched Funds on the General Information page to represent Total Personnel Funding for your court. "]
[null,null,null,null,null,null,null,null,null,null,"Select One: "]
[null,null,"Position Title ","Hours per Week","Hourly Rate","Weeks Requested","Total Salary Requested",null,null,null,"Clinical Case Manager"]
[null,null,null,null,null,null,null,null,null,null,"Counselor"]
[null,1,"Select One: ",null,0,null,{"$f":"D8*E8*F8","v":0},null,null,null,"Lab Technician/ Drug Screen Collector"]
[null,null,null,null,null,null,null,null,null,null,"Law Enforcement/ Surveillance Officer"]
[null,2,"Select One: ",null,0,null,{"$f":"D10*E10*F10","v":0},null,null,null,"Nurse Practitioner"]
[null,null,null,null,null,null,null,null,null,null,"Program Case Manager"]
[null,3,"Select One: ",null,0,null,{"$f":"D12*E12*F12","v":0},null,null,null,"Program Coordinator"]
[null,null,null,null,null,null,null,null,null,null,"Psychiatrist/ Physician"]
[null,4,"Select One: ",null,0,null,{"$f":"D14*E14*F14","v":0}]
[null,null,null,null,null,null,null,null,null,null,"Select One: "]
[null,5,"Select One: ",null,0,null,{"$f":"D16*E16*F16","v":0},null,null,null,"FICA"]
[null,null,null,null,null,null,null,null,null,null,"Health Insurance"]
[null,6,"Select One: ",null,0,null,{"$f":"D18*E18*F18","v":0},null,null,null,"Unemployment Insurance"]
[null,null,null,null,null,null,null,null,null,null,"Other"]
[null,7,"Select One: ",null,0,null,{"$f":"D20*E20*F20","v":0},null,null,null,"Total Salary",{"$f":"SUM(G8,G10,G12,G14,G16,G18,G20,G22,G24,G26)","v":0},"Total Personnel",{"$f":"SUM(L20:L21)","v":0}]
[null,null,null,null,null,null,null,null,null,null,"Total Benefits",{"$f":"SUM(H31,H34,H37,H40,H43,H46,H49,H52,H55,H58)","v":0}]
[null,8,"Select One: ",null,0,null,{"$f":"D22*E22*F22","v":0}]
[]
[null,9,"Select One: ",null,0,null,{"$f":"D24*E24*F24","v":0}]
[]
[null,10,"Select One: ",null,0,null,{"$f":"D26*E26*F26","v":0}]
[]
[null,null,"Fringe Benefits","Benefit Requested","Benefit Rate (as percentage of salary)","Benefit Requested","Benefit Rate (as percentage of salary)","Total anticipated Cost"]
[]
[null,1,{"$f":"C8","v":"Select One: "},"Select One: ",null,"Select One: "]
[null,null,null,"Select One: ",null,"Select One: ",null,{"$f":"SUM((G8*E30) +(G8*G30)+(G8*E31)+(G8*G31))","v":0}]
[]
[null,2,{"$f":"C10","v":"Select One: "},"Select One: ",null,"Select One: "]
[null,null,null,"Select One: ",null,"Select One: ",null,{"$f":"SUM((G10*E33) +(G10*G33)+(G10*E34)+(G10*G34))","v":0}]
[]
[null,3,{"$f":"C12","v":"Select One: "},"Select One: ",null,"Select One: "]
[null,null,null,"Select One: ",null,"Select One: ",null,{"$f":"SUM((G12*E36) +(G12*G36)+(G12*E37)+(G12*G37))","v":0}]
[]
[null,4,{"$f":"C14","v":"Select One: "},"Select One: ",null,"Select One: "]
[null,null,null,"Select One: ",null,"Select One: ",null,{"$f":"SUM((G14*E39) +(G14*G39)+(G14*E40)+(G14*G40))","v":0}]
[]
[null,5,{"$f":"C16","v":"Select One: "},"Select One: ",null,"Select One: "]
[null,null,null,"Select One: ",null,"Select One: ",null,{"$f":"SUM((G16*E42) +(G16*G42)+(G16*E43)+(G16*G43))","v":0}]
[]
[null,6,{"$f":"C18","v":"Select One: "},"Select One: ",null,"Select One: "]
[null,null,null,"Select One: ",null,"Select One: ",null,{"$f":"SUM((G18*E45) +(G18*G45)+(G18*E46)+(G18*G46))","v":0}]
[]
[null,7,{"$f":"C20","v":"Select One: "},"Select One: ",null,"Select One: "]
[null,null,null,"Select One: ",null,"Select One: ",null,{"$f":"SUM((G20*E48) +(G20*G48)+(G20*E49)+(G20*G49))","v":0}]
[]
[null,8,{"$f":"C22","v":"Select One: "},"Select One: ",null,"Select One: "]
[null,null,null,"Select One: ",null,"Select One: ",null,{"$f":"SUM((G22*E51) +(G22*G51)+(G22*E52)+(G22*G52))","v":0}]
[]
[null,9,{"$f":"C24","v":"Select One: "},"Select One: ",null,"Select One: "]
[null,null,null,"Select One: ",null,"Select One: ",null,{"$f":"SUM((G24*E54) +(G24*G54)+(G24*E55)+(G24*G55))","v":0}]
[]
[null,10,{"$f":"C26","v":"Select One: "},"Select One: ",null,"Select One: "]
[null,null,null,"Select One: ",null,"Select One: ",null,{"$f":"SUM((G26*E57) +(G26*G57)+(G26*E58)+(G26*G58))","v":0}]

{"sheet":"Contract Services Request","index":5,"n_rows":38,"n_cols":14,"rows_kept":38,"cut":false,"hidden":false,"merged":[[1,3,1,7],[3,3,3,7]]}
[]
[null,null,null,"Contract Personnel Services Request"]
[null,null,null,null,null,null,null,null,null,null,null,"Select One: ",null,"Select One: "]
[null,null,null,"Instructions: Contract Personnel are those for whom you are not paying fringe benefits. These may be treatment providers, surveillance personnel , life skills programming providers or other professionals. Only include the number of hours or units you are asking the CACJ to fund. Please remember to update your Matched Funds on the General Information page to represent Total  Contract Personnel Funding for your court. ",null,null,null,null,null,null,null,"Clinical Case Manager",null,"CSB"]
[null,null,null,null,null,null,null,null,null,null,null,"Counselor",null,"non-CSB"]
[null,null,"Position Title","Rate Unit","Rate per Unit","Total Units Requested ","Anticipated Number of Participants you will be able to serve per rate you choose","Provider Type","Requested Cost",null,null,"Lab Technician/ Drug Screen Collector"]
[null,null,null,null,null,null,null,null,null,null,null,"Law Enforcement/ Surveillance Officer",null,"Select One: "]
[null,1,"Select One: ","Select One: ",0,null,null,"Select One: ",{"$f":"SUM(E8*F8)","v":0},null,null,"Nurse Practitioner",null,"per Participant"]
[null,null,null,null,null,null,null,null,null,null,null,"Program Case Manager",null,"per Hour"]
[null,2,"Select One: ","Select One: ",0,null,null,"Select One: ",{"$f":"SUM(E10*F10)","v":0},null,null,"Program Coordinator",null,"per Session"]
[null,null,null,null,null,null,null,null,null,null,null,"Psychiatrist/ Physician",null,"per Month"]
[null,3,"Select One: ","Select One: ",0,null,null,"Select One: ",{"$f":"SUM(E12*F12)","v":0}]
[]
[null,4,"Select One: ","Select One: ",0,null,null,"Select One: ",{"$f":"SUM(E14*F14)","v":0},null,null,"Total Contract",{"$f":"SUM(I8,I10,I12,I14,I16,I18,I20,I22,I24,I26,I28,I30,I32,I34,I36,I38)","v":0}]
[]
[null,5,"Select One: ","Select One: ",0,null,null,"Select One: ",{"$f":"SUM(E16*F16)","v":0}]
[]
[null,6,"Select One: ","Select One: ",0,null,null,"Select One: ",{"$f":"SUM(E18*F18)","v":0}]
[]
[null,7,"Select One: ","Select One: ",0,null,null,"Select One: ",{"$f":"SUM(E20*F20)","v":0}]
[]
[null,8,"Select One: ","Select One: ",0,null,null,"Select One: ",{"$f":"SUM(E22*F22)","v":0}]
[]
[null,9,"Select One: ","Select One: ",0,null,null,"Select One: ",{"$f":"SUM(E24*F24)","v":0}]
[]
[null,10,"Select One: ","Select One: ",0,null,null,"Select One: ",{"$f":"SUM(E26*F26)","v":0}]
[]
[null,11,"Select One: ","Select One: ",0,null,null,"Select One: ",{"$f":"SUM(E28*F28)","v":0}]
[]
[null,12,"Select One: ","Select One: ",0,null,null,"Select One: ",{"$f":"SUM(E30*F30)","v":0}]
[]
[null,13,"Select One: ","Select One: ",0,null,null,"Select One: ",{"$f":"SUM(E32*F32)","v":0}]
[]
[null,14,"Select One: ","Select One: ",0,null,null,"Select One: ",{"$f":"SUM(E34*F34)","v":0}]
[]
[null,15,"Select One: ","Select One: ",0,null,null,"Select One: ",{"$f":"SUM(E36*F36)","v":0}]
[]
[null,16,"Select One: ","Select One: ",0,null,null,"Select One: ",{"$f":"SUM(E38*F38)","v":0}]

{"sheet":"Drug Testing Supplies","index":6,"n_rows":84,"n_cols":14,"rows_kept":84,"cut":false,"hidden":false,"merged":[[26,1,26,4],[1,1,1,7],[3,1,3,7]]}
[]
[null,"Drug Testing Supplies",null,null,null,null,null,null,null,null,"Select One: "]
[null,null,null,null,null,null,null,null,null,null,"Latex Gloves",null,"Consummables",{"$f":"SUM(F8,F10,F12)","v":0}]
[null,"Instructions: Drug Testing Supplies are divided into consummables, monitoring equipment, confirmation testing, onsite devices, and reagents. For each section, select the item you wish to purchase from the first column and then the appropriate units you typically purchase for that item. The item and units are provided in dropdown menus. Enter in the cost per unit and the number of units for which you are requesting CACJ funding. The total amount requested will automatically calculate bsed on your selections. For Confirmation Testing, Onsite Devices, and Reagents, please also select the company from which you intend to purchase. Please remember to update your Matched Funds on the General Information page to represent Total  Drug Testing Supplies Funding for your court. ",null,null,null,null,null,null,null,null,"Water",null,"Monitoring Equipment",{"$f":"SUM(F17,F19,F21,F23)","v":0}]
[null,null,null,null,null,null,null,null,null,null,"Urine Collection Cups",null,"Confirmation Testing",{"$f":"SUM(E29,E31,E33,E35)","v":0}]
[null,"Consummables","Unit","Cost per Unit","Total units Requested","Total Amount Requested",null,null,null,null,"Other",null,"On-Site",{"$f":"SUM(H40,H42,H44,H46)","v":0}]
[null,null,null,null,null,null,null,null,null,null,"Select One: ",null,"Reagents",{"$f":"SUM(G52,G54,G56,G58,G60,G62,G64,G66,G70,G72,G74,G76,G78,G80,G82,G84)","v":0}]
[null,"Select One: ","Select One: ",0,null,{"$f":"SUM(D8*E8)","v":0},null,null,null,null,"Box",null,"Drug Testing Supplies",{"$f":"SUM(N3:N7)","v":0}]
[null,null,null,null,null,null,null,null,null,null,"Cup"]
[null,"Select One: ","Select One: ",0,null,{"$f":"SUM(D10*E10)","v":0},null,null,null,null,"Gallon"]
[null,null,null,null,null,null,null,null,null,null,"Item"]
[null,"Select One: ","Select One: ",0,null,{"$f":"SUM(D12*E12)","v":0},null,null,null,null,"Patch"]
[null,null,null,null,null,null,null,null,null,null,"Stick"]
[null,null,null,null,null,null,null,null,null,null,"Swab"]
[null,"Monitoring Equipment (Select Type)","Unit","Cost per Unit","Total Units Requested","Total Amount Requested",null,null,null,null,"Test"]
[]
[null,"Select One:","Select One: ",0,null,{"$f":"D17*E17","v":0},null,null,null,null,"Select One:",null,"Select One:","Select One:"]
[null,null,null,null,null,null,null,null,null,null,"Continuous Alcohol Monitoring Devices",null,"Barbiturates","Quaaludes"]
[null,"Select One:","Select One: ",0,null,{"$f":"D19*E19","v":0},null,null,null,null,"Remote Breathylzer",null,"Burprenorphine","Ecstasy/MDMA"]
[null,null,null,null,null,null,null,null,null,null,"Electronic Ankle Monitors",null,"Cocaine/Crack","Ketamine"]
[null,"Select One:","Select One: ",0,null,{"$f":"D21*E21","v":0},null,null,null,null,"Ignition Interlock Devices",null,"ETG","LSD"]
[null,null,null,null,null,null,null,null,null,null,null,null,"Methadone","Rophynol"]
[null,"Select One:","Select One: ",0,null,{"$f":"D23*E23","v":0},null,null,null,null,"Select One:",null,"Methamphetamine","Steriods"]
[null,null,null,null,null,null,null,null,null,null,"AverTest","Panels Tested","Opiates","Synthetic Cannabinoids (K2/Spice)"]
[null,null,null,null,null,null,null,null,null,null,"Discover",1,"Percoset/Oxycodone","Synthetic Stimulants (BathSalts)"]
[null,"Confirmation Test","Average Cost per Test","No. Tests Requested","Total Amount Requested",null,null,null,null,null,"eLab",2,"Propoxyphene","Tryptamines (Psilocybin)"]
[null,"For the setion on Confirmation Testing, please select the company to which you send test. ",null,null,null,null,null,null,null,null,"Noble Chemical",3,"THC","Inhalents"]
[null,null,null,null,null,null,null,null,null,null,"OneScreen",4,"Other","Kratom"]
[null,"Select One:",0,null,{"$f":"C29*D29","v":0},null,null,null,null,null,"OraTect",5,null,"Other"]
[null,null,null,null,null,null,null,null,null,null,"Other",6]
[null,"Select One:",0,null,{"$f":"C31*D31","v":0},null,null,null,null,null,"Redwood",7]
[null,null,null,null,null,null,null,null,null,null,"Reveal",8]
[null,"Select One:",0,null,{"$f":"C33*D33","v":0},null,null,null,null,null,"Seimens",9]
[null,null,null,null,null,null,null,null,null,null,"ThermoFisher",10]
[null,"Select One:",0,null,{"$f":"C35*D35","v":0},null,null,null,null,null,"UsDiagnostics",11]
[null,null,null,null,null,null,null,null,null,null,null,12]
[null,null,null,null,null,null,null,null,null,null,"Select One:",13]
[null,"Onsite Devices (type)","Company Used","Panels Tested","Cost per Unit","Units","Total Units Requested","Total Request",null,null,"Testing Sticks",14]
[null,null,null,null,null,null,null,null,null,null,"Cups",15]
[null,"Select One:","Select One:","Panels Tested",0,"Select One: ",null,{"$f":"SUM(E40*G40)","v":0},null,null,"Swabs"]
[null,null,null,null,null,null,null,null,null,null,"Patches"]
[null,"Select One:","Select One:","Panels Tested",0,"Select One: ",null,{"$f":"SUM(E42*G42)","v":0}]
[]
[null,"Select One:","Select One:","Panels Tested",0,"Select One: ",null,{"$f":"SUM(E44*G44)","v":0}]
[]
[null,"Select One:","Select One:","Panels Tested",0,"Select One: ",null,{"$f":"SUM(E46*G46)","v":0}]
[]
[]
[null,"Reagents(Select Drug Type)","Company Used","Cost per Unit","Units","Total Units Requested","Total Request"]
[null,"Typical Drugs"]
[]
[null,"Select One:","Select One:",0,"Select One: ",null,{"$f":"D52*F52","v":0}]
[]
[null,"Select One:","Select One:",0,"Select One: ",null,{"$f":"D54*F54","v":0}]
[]
[null,"Select One:","Select One:",0,"Select One: ",null,{"$f":"D56*F56","v":0}]
[]
[null,"Select One:","Select One:",0,"Select One: ",null,{"$f":"D58*F58","v":0}]
[]
[null,"Select One:","Select One:",0,"Select One: ",null,{"$f":"D60*F60","v":0}]
[]
[null,"Select One:","Select One:",0,"Select One: ",null,{"$f":"D62*F62","v":0}]
[]
[null,"Select One:","Select One:",0,"Select One: ",null,{"$f":"D64*F64","v":0}]
[]
[null,"Select One:","Select One:",0,"Select One: ",null,{"$f":"D66*F66","v":0}]
[]
[null,"Synthetic/Designer Drugs"]
[]
[null,"Select One:","Select One:",0,"Select One: ",null,{"$f":"D70*F70","v":0}]
[]
[null,"Select One:","Select One:",0,"Select One: ",null,{"$f":"D72*F72","v":0}]
[]
[null,"Select One:","Select One:",0,"Select One: ",null,{"$f":"D74*F74","v":0}]
[]
[null,"Select One:","Select One:",0,"Select One: ",null,{"$f":"D76*F76","v":0}]
[]
[null,"Select One:","Select One:",0,"Select One: ",null,{"$f":"D78*F78","v":0}]
[]
[null,"Select One:","Select One:",0,"Select One: ",null,{"$f":"D80*F80","v":0}]
[]
[null,"Select One:","Select One:",0,"Select One: ",null,{"$f":"D82*F82","v":0}]
[]
[null,"Select One:","Select One:",0,"Select One: ",null,{"$f":"D84*F84","v":0}]

{"sheet":"Non-Drug Testing Supplies","index":7,"n_rows":18,"n_cols":9,"rows_kept":18,"cut":false,"hidden":false,"merged":[[1,1,1,4],[3,1,3,4]]}
[]
[null,"All Other non-Drug Testing Supplies"]
[]
[null,"Cost is less than $5000. Please remember to update your Matched Funds on the General Information page to represent Total  All Non-Drug Testing Supplies Funding for your court. "]
[null,null,null,null,null,null,null,"Non-Drug",{"$f":"SUM(E8,E10,E12,E14,E16,E18)","v":0}]
[null,"Supply Type","Cost per Unit","Total Units Requested","Total Requested Amount"]
[]
[null,null,0,null,{"$f":"C8*D8","v":0}]
[]
[null,null,0,null,{"$f":"C10*D10","v":0}]
[]
[null,null,0,null,{"$f":"C12*D12","v":0}]
[]
[null,null,0,null,{"$f":"C14*D14","v":0}]
[]
[null,null,0,null,{"$f":"C16*D16","v":0}]
[]
[null,null,0,null,{"$f":"C18*D18","v":0}]

{"sheet":"Equipment","index":8,"n_rows":26,"n_cols":10,"rows_kept":26,"cut":false,"hidden":false,"merged":[[1,2,1,5],[3,2,3,5]]}
[]
[null,null,"Equipment"]
[]
[null,null,"Per Unit Cost is Greater than $5000. Please remember to update your Matched Funds on the General Information page to represent Total  Equipment Funding for your court. ",null,null,null,null,null,"Equipment",{"$f":"SUM(F8,F10,F12,F14,F16,F18,F20,F22,F24,F26)","v":0}]
[]
[null,null,"Equipment Type","Cost per Unit","Total Units Requested","Total Requested Amount"]
[]
[null,1,null,0,0,{"$f":"D8*E8","v":0}]
[]
[null,2,null,0,null,{"$f":"D10*E10","v":0}]
[]
[null,3,null,0,null,{"$f":"D12*E12","v":0}]
[]
[null,4,null,0,null,{"$f":"D14*E14","v":0}]
[]
[null,5,null,0,null,{"$f":"D16*E16","v":0}]
[]
[null,6,null,0,null,{"$f":"D18*E18","v":0}]
[]
[null,7,null,0,null,{"$f":"D20*E20","v":0}]
[]
[null,8,null,null,null,{"$f":"D22*E22","v":0}]
[]
[null,9,null,0,null,{"$f":"D24*E24","v":0}]
[]
[null,10,null,0,null,{"$f":"D26*E26","v":0}]

{"sheet":"Training & Travel","index":9,"n_rows":50,"n_cols":18,"rows_kept":50,"cut":false,"hidden":false,"merged":[[5,2,5,9],[3,2,3,9],[1,2,1,9],[28,2,28,8]]}
[]
[null,null,"Training & Travel"]
[]
[null,null,"Instructions: The 2017 CACJ Annual Training Conference travel costs will calculate based on the conference location (the Classic Center - Athens, GA). Your court is allowed up to 8 attendees, per court (Family Treatment Courts can request up to 10 attendees due to court team makeup).  Mileage should be calculated from your court's location to the conference location.  Mileage expenses will automatically calculate when the number of miles is entered.  Conference parking requests should not exceed $10 per/day, per/car.  Parking requests should be entered manually.  Please enter the number of team members attending the conference and please note that the total per diem requested automatically populates within the total anticipated costs.  Next, please enter the number of nights your team will stay in a hotel (this number will be 1 or 2 only).  Then enter the number of hotel rooms needed to accommodate your team members.  Please note that the total anticipated costs increases when you enter the number of hotel rooms.  Expenses for the hotel and mileage calculate in accordance with the State of Georgia Statewide Travel Regulations.  Further, the 2017 CACJ Annual Training Conference requests should include no more than two nights of lodging per/person, if your courts is located more than 51 miles or more from the conference venue; mileage expenses ($0.535/mile) for attendees to and from the conference venue, if your court is located less than 51 miles from the conference venue; and per diem expenses for meals if your court is located 51 miles or more from the conference venue.  The CACJ will provide breakfast and lunch to conference attendees, and please consider using state vehicles and/or carpooling to the conference when possible.  Fully describe your matched funds (to include calculations) in the narrative section below.  Please remember to update your Matched Funds on the General Information page to represent Total Training and Travel Funding for your court.  Other In-State Training and Travel Requests should be requested in accordance with the State of Georgia Statewide Travel Regulations. Please remember to update your Matched Funds on the General Information page to represent Total  Training and Travel Funding for your court. "]
[null,null,null,null,null,null,null,null,null,null,null,null,null,"CACJ Training",{"$f":"SUM(J9,J11,J13,J15,J17,J19,J21,J23,J25,J27)","v":0}]
[null,null,"CACJ Annual Conference",null,null,null,null,null,null,null,null,null,null,"In-State",{"$f":"SUM(I32,I34,I36,I38,I40,I42,I44,I46,I48,I50)","v":0}]
[null,null,"Court Team Name","Mileage (roundtrip for all team members)","Parking Request","No. Team Members","Total Hotel nights per room","No. Hotel Rooms","Total Per Diem Requested","Total Anticipated Cost",null,null,null,"Total T&T",{"$f":"SUM(O5:O6)","v":0}]
[null,null,null,null,null,null,null,null,null,null,null,null,null,null,"Hotel","MIE","TravelDays","Mileage"]
[null,1,"Select One:",null,0,null,null,null,{"$f":"SUM(F9*44)","v":0},{"$f":"SUM((D9*$R$10)+E9+(G9*H9*$O$10)+(I9))","v":0},null,null,null,"Select One:",0,0,0,0]
[null,null,null,null,null,null,null,null,null,null,null,null,null,"Athens",135,28,21,0.53500000000000003]
[null,2,"Select One:",null,0,null,null,null,{"$f":"SUM(F11*44)","v":0},{"$f":"SUM((D11*$R$10)+E11+(G11*H11*$O$10)+(I11))","v":0},null,null,null,"Peachtree City",91,28,21]
[null,null,null,null,null,null,null,null,null,null,null,null,null,"Atlanta",135,28,27]
[null,3,"Select One:",null,0,null,null,null,{"$f":"SUM(F13*44)","v":0},{"$f":"SUM((D13*$R$10)+E13+(G13*H13*$O$10)+(I13))","v":0},null,null,null,"Macon",91,28,21]
[]
[null,4,"Select One:",null,0,null,null,null,{"$f":"SUM(F15*44)","v":0},{"$f":"SUM((D15*$R$10)+E15+(G15*H15*$O$10)+(I15))","v":0}]
[]
[null,5,"Select One:",null,0,null,null,null,{"$f":"SUM(F17*44)","v":0},{"$f":"SUM((D17*$R$10)+E17+(G17*H17*$O$10)+(I17))","v":0}]
[]
[null,6,"Select One:",null,0,null,null,null,{"$f":"SUM(F19*44)","v":0},{"$f":"SUM((D19*$R$10)+E19+(G19*H19*$O$10)+(I19))","v":0}]
[]
[null,7,"Select One:",null,0,null,null,null,{"$f":"SUM(F21*44)","v":0},{"$f":"SUM((D21*$R$10)+E21+(G21*H21*$O$10)+(I21))","v":0}]
[]
[null,8,"Select One:",null,0,null,null,null,{"$f":"SUM(F23*44)","v":0},{"$f":"SUM((D23*$R$10)+E23+(G23*H23*$O$10)+(I23))","v":0}]
[]
[null,9,"Select One:",null,0,null,null,null,{"$f":"SUM(F25*44)","v":0},{"$f":"SUM((D25*$R$10)+E25+(G25*H25*$O$10)+(I25))","v":0}]
[]
[null,10,"Select One:",null,0,null,null,null,{"$f":"SUM(F27*44)","v":0},{"$f":"SUM((D27*$R$10)+E27+(G27*H27*$O$10)+(I27))","v":0}]
[]
[null,null,"Other In-State Training or Travel Requests"]
[null,null,"Attendee Name","Mileage (roundtrip)","Location","No. Travel Days","No. Training Days","No. Hotel Nights","Total Anticipated Cost"]
[]
[null,1,null,null,null,null,null,null,{"$f":"SUM((D32*$R$10)+(F32*$Q$10)+(G32*$P$10)+(H32*$O$10))","v":0}]
[]
[null,2,null,null,null,null,null,null,{"$f":"SUM((D34*$R$10)+(F34*$Q$10)+(G34*$P$10)+(H34*$O$10))","v":0}]
[]
[null,3,null,null,null,null,null,null,{"$f":"SUM((D36*$R$10)+(F36*$Q$10)+(G36*$P$10)+(H36*$O$10))","v":0}]
[]
[null,4,null,null,null,null,null,null,{"$f":"SUM((D38*$R$10)+(F38*$Q$10)+(G38*$P$10)+(H38*$O$10))","v":0}]
[]
[null,5,null,null,null,null,null,null,{"$f":"SUM((D40*$R$10)+(F40*$Q$10)+(G40*$P$10)+(H40*$O$10))","v":0}]
[]
[null,6,null,null,null,null,null,null,{"$f":"SUM((D42*$R$10)+(F42*$Q$10)+(G42*$P$10)+(H42*$O$10))","v":0}]
[]
[null,7,null,null,null,null,null,null,{"$f":"SUM((D44*$R$10)+(F44*$Q$10)+(G44*$P$10)+(H44*$O$10))","v":0}]
[]
[null,8,null,null,null,null,null,null,{"$f":"SUM((D46*$R$10)+(F46*$Q$10)+(G46*$P$10)+(H46*$O$10))","v":0}]
[]
[null,9,null,null,null,null,null,null,{"$f":"SUM((D48*$R$10)+(F48*$Q$10)+(G48*$P$10)+(H48*$O$10))","v":0}]
[]
[null,10,null,null,null,null,null,null,{"$f":"SUM((D50*$R$10)+(F50*$Q$10)+(G50*$P$10)+(H50*$O$10))","v":0}]

{"sheet":"Transportation Narrative","index":10,"n_rows":134,"n_cols":10,"rows_kept":134,"cut":false,"hidden":false,"merged":[[11,1,11,6],[23,1,23,6],[1,1,1,6],[3,1,3,6],[5,1,5,2],[7,1,7,2],[9,1,9,2],[5,3,5,6],[7,3,7,6],[9,3,9,6]]}
[]
[null,"Transportation Request",null,null,null,null,null,null,null,"Select All Applicable Courts:"]
[null,null,null,null,null,null,null,null,null,"Alapaha Circuit Drug Court"]
[null,"All applicants should fill out the following if your court is seeking transportation grant funds. Transportation projects include things such as partnerships with the Department of Community Supervisionor local Sheriff's office to provide transportation to/from court or treatment services. Transportation vouchers (such as bus or train passes) may be requested. Transportation grant funds will not be allowed to be used for: vehicles, gas cards, or incentives. Funding requests for this budget detail can be shared among multiple courts. The funds will be applied to the application in which the questions and Budget Detail are completed. ",null,null,null,null,null,null,null,"Appalachian Judicial Circuit Drug Court"]
[null,null,null,null,null,null,null,null,null,"Appalachian Judicial Circuit Veterans"]
[null,"If you are applying for multiple courts, please list the courts. ",null,null,null,null,null,null,null,"Appalachian Judicial FDTC"]
[null,null,null,null,null,null,null,null,null,"Appalachian Judicial Mental Health Drug Court"]
[null,"How many participants do you anticipate will participate in your proposed transportation project (from July 1, 2017 - June 30, 2018)? If you are applying for multiple courts, please list the court name then the number of participants. ",null,null,null,null,null,null,null,"Appalachian Juvenile Court"]
[null,null,null,null,null,null,null,null,null,"Athens - Clarke County DUI Court"]
[null,"How many new participants will your court add if the the proposed transportation project is funded? If you are applying for multiple courts, please list the court name then the number of participants. ",null,null,null,null,null,null,null,"Athens-Clarke County Treatment and Accountability Court"]
[null,null,null,null,null,null,null,null,null,"Athens-Clarke FDTC"]
[null,"Please fully describe your proposed transportation project. Include why the project is needed and cannot be funded by other sources. ",null,null,null,null,null,null,null,"Atlantic Judicial Circuit Drug Court"]
[null,null,null,null,null,null,null,null,null,"Atlantic Judicial Circuit Veterans"]
[null,null,null,null,null,null,null,null,null,"Augusta Judicial Circuit Drug Court"]
[null,null,null,null,null,null,null,null,null,"Augusta Judicial Circuit Mental Health Court"]
[null,null,null,null,null,null,null,null,null,"Augusta Judicial Circuit Veterans Court"]
[null,null,null,null,null,null,null,null,null,"Baldwin County FDTC"]
[null,null,null,null,null,null,null,null,null,"Barrow County Adult Felony Drug Court"]
[null,null,null,null,null,null,null,null,null,"Bibb County Mental Health Court"]
[null,null,null,null,null,null,null,null,null,"Blue Ridge Judicial Circuit Drug Court"]
[null,null,null,null,null,null,null,null,null,"Bulloch County Accountability Court"]
[null,null,null,null,null,null,null,null,null,"Carroll County Drug Court"]
[null,null,null,null,null,null,null,null,null,"Chatham County DUI Court"]
[null,"If there are any additional items regarding your transportation program, please include them in the space below. ",null,null,null,null,null,null,null,"Chatham-Savannah Veterans Treatment Court"]
[null,null,null,null,null,null,null,null,null,"Cherokee County DUI Court"]
[null,null,null,null,null,null,null,null,null,"Cherokee County MISD Court"]
[null,null,null,null,null,null,null,null,null,"Clayton County Drug Court"]
[null,null,null,null,null,null,null,null,null,"Clayton County DUI Court"]
[null,null,null,null,null,null,null,null,null,"Cobb County Drug Court"]
[null,null,null,null,null,null,null,null,null,"Cobb County DUI Court"]
[null,null,null,null,null,null,null,null,null,"Cobb County FDTC"]
[null,null,null,null,null,null,null,null,null,"Cobb County Juvenile Court"]
[null,null,null,null,null,null,null,null,null,"Cobb County Mental Health Court"]
[null,null,null,null,null,null,null,null,null,"Cobb County Veterans Court"]
[null,null,null,null,null,null,null,null,null,"Colquitt SA/MH Court"]
[null,null,null,null,null,null,null,null,null,"Conasauga Drug Court"]
[null,null,null,null,null,null,null,null,null,"Coweta County Adult Felony Drug Court"]
[null,null,null,null,null,null,null,null,null,"Coweta County DUI Court"]
[null,null,null,null,null,null,null,null,null,"Coweta County FDTC"]
[null,null,null,null,null,null,null,null,null,"Coweta County Veterans Court"]
[null,null,null,null,null,null,null,null,null,"Crisp County Adult Felony Drug Court"]
[null,null,null,null,null,null,null,null,null,"Dawson County HELP Court"]
[null,null,null,null,null,null,null,null,null,"Dawson County Treatment Court"]
[null,null,null,null,null,null,null,null,null,"DeKalb County Drug Court"]
[null,null,null,null,null,null,null,null,null,"DeKalb County DUI Court"]
[null,null,null,null,null,null,null,null,null,"DeKalb County Juvenile Court"]
[null,null,null,null,null,null,null,null,null,"DeKalb County Superior Mental Health Court"]
[null,null,null,null,null,null,null,null,null,"DeKalb County Veterans Court"]
[null,null,null,null,null,null,null,null,null,"DeKalb Juvenile Journey MH Court"]
[null,null,null,null,null,null,null,null,null,"Dougherty County MH/SA Court"]
[null,null,null,null,null,null,null,null,null,"Douglas Circuit Felony Accountability Court"]
[null,null,null,null,null,null,null,null,null,"Douglas County DUI Court"]
[null,null,null,null,null,null,null,null,null,"Douglas County FDTC"]
[null,null,null,null,null,null,null,null,null,"Dublin Mental Health/Veterans Court"]
[null,null,null,null,null,null,null,null,null,"Enotah Drug Court (North)"]
[null,null,null,null,null,null,null,null,null,"Enotah Drug Court (South)"]
[null,null,null,null,null,null,null,null,null,"Enotah FDTC"]
[null,null,null,null,null,null,null,null,null,"Enotah Mental Health Court"]
[null,null,null,null,null,null,null,null,null,"Fayette County DUI Court"]
[null,null,null,null,null,null,null,null,null,"Forsyth County Drug Court"]
[null,null,null,null,null,null,null,null,null,"Forsyth County DUI Court"]
[null,null,null,null,null,null,null,null,null,"Forsyth County Juvenile Court"]
[null,null,null,null,null,null,null,null,null,"Forsyth Mental Health Court"]
[null,null,null,null,null,null,null,null,null,"Fulton County Accountability Court"]
[null,null,null,null,null,null,null,null,null,"Fulton County DUI Court"]
[null,null,null,null,null,null,null,null,null,"Fulton County FDTC"]
[null,null,null,null,null,null,null,null,null,"Fulton County Juvenile Court"]
[null,null,null,null,null,null,null,null,null,"Fulton County Juvenile MH Court"]
[null,null,null,null,null,null,null,null,null,"Fulton County Mental Health Court"]
[null,null,null,null,null,null,null,null,null,"Fulton Veterans Court"]
[null,null,null,null,null,null,null,null,null,"Griffin Judicial Circuit Drug Court"]
[null,null,null,null,null,null,null,null,null,"Gwinnett County Drug Court"]
[null,null,null,null,null,null,null,null,null,"Gwinnett County DUI Court"]
[null,null,null,null,null,null,null,null,null,"Gwinnett County Mental Health Court"]
[null,null,null,null,null,null,null,null,null,"Gwinnett County Veterans Court"]
[null,null,null,null,null,null,null,null,null,"Gwinnett Juvenile Court"]
[null,null,null,null,null,null,null,null,null,"Hall County Adult Felony Court"]
[null,null,null,null,null,null,null,null,null,"Hall County DUI Court"]
[null,null,null,null,null,null,null,null,null,"Hall County Felony Probation Court"]
[null,null,null,null,null,null,null,null,null,"Hall County FTC"]
[null,null,null,null,null,null,null,null,null,"Hall County HELP Court"]
[null,null,null,null,null,null,null,null,null,"Hall County State veterans Court"]
[null,null,null,null,null,null,null,null,null,"Henry County Adult Felony Drug Court"]
[null,null,null,null,null,null,null,null,null,"Henry County DUI Court"]
[null,null,null,null,null,null,null,null,null,"Henry County Juvenile MH Court"]
[null,null,null,null,null,null,null,null,null,"Henry County Resource Court"]
[null,null,null,null,null,null,null,null,null,"Houston Mental Health Court"]
[null,null,null,null,null,null,null,null,null,"Jackson County Drug Court"]
[null,null,null,null,null,null,null,null,null,"Jefferson County Adult Drug Court"]
[null,null,null,null,null,null,null,null,null,"Liberty County DUI Court"]
[null,null,null,null,null,null,null,null,null,"Lowndes County DUI Court"]
[null,null,null,null,null,null,null,null,null,"Lowndes County Treatment Court"]
[null,null,null,null,null,null,null,null,null,"Macon - Bibb County Veterans Treatment Court"]
[null,null,null,null,null,null,null,null,null,"Macon-Bibb County Adult Drug Court"]
[null,null,null,null,null,null,null,null,null,"Mountain Judicial Circuit Drug Court"]
[null,null,null,null,null,null,null,null,null,"Mountain Judicial FTC"]
[null,null,null,null,null,null,null,null,null,"Muscogee County Adult Felony Drug Court"]
[null,null,null,null,null,null,null,null,null,"Muscogee County Juvenile Court"]
[null,null,null,null,null,null,null,null,null,"Muscogee County Mental Health Court"]
[null,null,null,null,null,null,null,null,null,"Muscogee County Veterans Court"]
[null,null,null,null,null,null,null,null,null,"Newton County Adult Felony Drug Court"]
[null,null,null,null,null,null,null,null,null,"Newton County Veterans Court"]
[null,null,null,null,null,null,null,null,null,"Newton Juvenile Court"]
[null,null,null,null,null,null,null,null,null,"Newton/Walton County Mental Health Court"]
[null,null,null,null,null,null,null,null,null,"Northern Circuit Drug Court"]
[null,null,null,null,null,null,null,null,null,"Ocmulgee Circuit ATCC MH Court"]
[null,null,null,null,null,null,null,null,null,"Ocmulgee Circuit ATCC: Substance Abuse Division"]
[null,null,null,null,null,null,null,null,null,"Pataula Judicial Circuit Drug Court"]
[null,null,null,null,null,null,null,null,null,"Paulding Circuit Drug Court"]
[null,null,null,null,null,null,null,null,null,"Piedmont Circuit Mental Health Court"]
[null,null,null,null,null,null,null,null,null,"Richmond County State Acct Court"]
[null,null,null,null,null,null,null,null,null,"Richmond County State Veterans Court"]
[null,null,null,null,null,null,null,null,null,"Rockdale County Adult Drug Court"]
[null,null,null,null,null,null,null,null,null,"Rockdale County DUI Court"]
[null,null,null,null,null,null,null,null,null,"Rockdale County Juvenile Court"]
[null,null,null,null,null,null,null,null,null,"Rockdale County Mental Health Court"]
[null,null,null,null,null,null,null,null,null,"Rome Circuit Mental Health Court"]
[null,null,null,null,null,null,null,null,null,"Savannah-Chatham County Drug Court"]
[null,null,null,null,null,null,null,null,null,"Savannah-Chatham Mental Health Court"]
[null,null,null,null,null,null,null,null,null,"South Georgia Judicial Circuit Drug Court"]
[null,null,null,null,null,null,null,null,null,"Southwestern Drug Court"]
[null,null,null,null,null,null,null,null,null,"Tallapoosa Circuit Drug Court"]
[null,null,null,null,null,null,null,null,null,"Tallapoosa Circuit Mental Health Court"]
[null,null,null,null,null,null,null,null,null,"Tift County Adult Felony Drug Court"]
[null,null,null,null,null,null,null,null,null,"Tift County DUI Court"]
[null,null,null,null,null,null,null,null,null,"Toombs Circuit Drug Court"]
[null,null,null,null,null,null,null,null,null,"Towaliga Accountability Court"]
[null,null,null,null,null,null,null,null,null,"Troup County Adult  Drug Court"]
[null,null,null,null,null,null,null,null,null,"Troup County Adult Mental Health Court"]
[null,null,null,null,null,null,null,null,null,"Troup County DUI/Drug Court"]
[null,null,null,null,null,null,null,null,null,"Waycross Judicial Circuit Drug Court"]
[null,null,null,null,null,null,null,null,null,"Western Judicial Circuit Drug Court"]
[null,null,null,null,null,null,null,null,null,"Western Judicial Circuit Veterans Court"]
[null,null,null,null,null,null,null,null,null,"NEW Implementation Court"]

{"sheet":"Transportation Request","index":11,"n_rows":18,"n_cols":13,"rows_kept":18,"cut":false,"hidden":false,"merged":[[1,1,1,6],[3,1,3,6]]}
[]
[null,"Transportation Request"]
[]
[null,"If you are requesting ANY transportation funding, you are required to complete the Transportation Narrative tab. If you do not complete this information, your transportation request may not be considered. Please remember to update your Matched Funds on the General Information page to represent Total  Transportation Funding for your court. "]
[]
[null,"Mode of Transportation/Cost Type Reequested","Rate Unit","Rate per Unit selected (can be an average)","Total Units","Under Contract?","Total Amount Requested ",null,null,"Contract",null,"Transportation",{"$f":"SUM(G8,G10,G12,G14,G16,G18)","v":0}]
[null,null,null,null,null,null,null,null,null,"Yes"]
[null,"County Vehicle Mileage","Select One:",0,null,"Contract",{"$f":"D8*E8","v":0},null,null,"No"]
[]
[null,"Driver time (County Vehicle)","Select One:",0,null,"Contract",{"$f":"D10*E10","v":0},null,null,"Select One:"]
[null,null,null,null,null,null,null,null,null,"per Hour"]
[null,"Public Transportation","Select One:",0,null,"Contract",{"$f":"D12*E12","v":0},null,null,"per Passenger"]
[null,null,null,null,null,null,null,null,null,"per Trip"]
[null,"Private Transportation (Uber/Taxi)","Select One:",0,null,"Contract",{"$f":"D14*E14","v":0},null,null,"per Mile"]
[null,null,null,null,null,null,null,null,null,"per Pass/Token"]
[null,"Bike Share","Select One:",0,null,"Contract",{"$f":"D16*E16","v":0},null,null,"per Bike"]
[null,null,null,null,null,null,null,null,null,"Other"]
[null,"Other","Select One:",0,null,"Contract",{"$f":"D18*E18","v":0}]

{"sheet":"Court Narrative","index":12,"n_rows":22,"n_cols":11,"rows_kept":22,"cut":false,"hidden":false,"merged":[[21,1,21,6],[1,1,1,6],[17,4,17,6],[19,4,19,6],[3,1,3,6],[5,4,5,6],[7,4,7,6],[9,4,9,6],[11,4,11,6],[13,4,13,6],[15,4,15,6]]}
[]
[null,"Court Narrative"]
[null,null,null,null,null,null,null,null,null,null,"Select One: "]
[null,"Instructions: Use the Budget Priority section to indicate which of the items you requested in the budget detail take priority in your program. If the Funding Committee needs to make cuts, it may consider your program's preferences on this form. Please be sure to use the wording you used in the corresponding budget details tab. For example, if you requested personnel costs for a coordinator, surveillance officers, and a nurse, you should specify in the priority reasoning space which of these positions are most critical to your program. In the budget priority column, select the budget priority level for each section. Please do not select the same level twice. ",null,null,null,null,null,null,null,null,"First"]
[null,null,null,null,null,null,null,null,null,null,"Second"]
[null,null,null,"Budget Priority","Priority Reasoning",null,null,null,null,null,"Third"]
[null,null,null,null,null,null,null,null,null,null,"Fourth"]
[null,null,"Personnel","Select One: ",null,null,null,null,null,null,"Fifth "]
[null,null,null,null,null,null,null,null,null,null,"Sixth"]
[null,null,"Contract Services","Select One: ",null,null,null,null,null,null,"Seventh"]
[]
[null,null,"Drug Testing Supplies","Select One: "]
[]
[null,null,"Non-Drug Testing Supplies","Select One: "]
[]
[null,null,"Equipment","Select One: "]
[]
[null,null,"Training & Travel","Select One: "]
[]
[null,null,"Transportation ","Select One: "]
[]
[null,"Please fully but concisely describe your request/project/expansion. Explain why your request can not be funded using other funding sources. Include any appropriate additional documentation that may help explain your project. Please note: if you include information that is not relevant, or is voluminous, the committee may choose to not consider it. Include in your narrative how your project adheres to the state standards and best practices. "]

{"sheet":"Court Merge","index":13,"n_rows":3,"n_cols":1009,"rows_kept":3,"cut":false,"hidden":true,"merged":[]}
["CourtName","ImpCourtName","JudicialCircuit","PrimaryProgram","SecondaryTrack","CourtLevel","PersonnelRequested","PersonnelMatched","PersonnelTotal","ContractRequested","ContractMatched","ContractTotal","DrugTestRequested","DrugTestMatched","DrugTestTotal","TestingRequested","TestingMatched","TestingTotal","EquipmentTotal","EquipmentMatched","EquipmentTotal","TraningRequested","TrainingMatched","TrainingTotal","TransportationRequested","TransportationMatched","TransportationTotal","TotalCACJFund","Total='OtherFunds","TotalBudget","BryneFunds","BryneUse","BryneTerm","CSBFund","CSBUse","CSBTerm","DATEFund","DATEUse","DATETerm","FinDonationFund","FinDonationUse","FinDonationTerm","HighwaySafeFund","HighwaySafeUse","HighwaySafeTerm","Indp501Fund","Indp501Use","Indp501Term","JJIGrantFund","JJIGrantUse","JJIGrantTerm","LocalFund","LocalUse","LocalTerm","nonJAGBJAFund","nonJAGBJAUse","nonJAGBJATerm","FeesFund","FeesUse","FeesTerm","PrvFoundationFund","PrvFoundationUse","PrvFoundationTerm","LabRevFund","LabRevUse","LabRevTerm","SAMHSAFund","SAMHSAUse","SAMHSATerm","OtherFund","OtherUse","OtherTerm","P1Title","P1Hours/Week","P1HourlyRate","P1WeekRequested","P1Total","P2Title","P2Hours/Week","P2HourlyRate","P2WeekRequested","P2Total","P3Title","P3Hours/Week","P3HourlyRate","P3WeekRequested","P3Total","P4Title","P4Hours/Week","P4HourlyRate","P4WeekRequested","P4Total","P5Title","P5Hours/Week","P5HourlyRate","P5WeekRequested","P5Total","P6Title","P6Hours/Week","P6HourlyRate","P6WeekRequested","P6Total","P7Title","P7Hours/Week","P7HourlyRate","P7WeekRequested","P7Total","P8Title","P8Hours/Week","P8HourlyRate","P8WeekRequested","P8Total","P9Title","P9Hours/Week","P9HourlyRate","P9WeekRequested","P9Total","P10Title","P10Hours/Week","P10HourlyRate","P10WeekRequested","P10Total","P1BenefitA","P1BenefitRateA","P1BenefitB","P1BenefitRateB","P1BenefitC","P1BenefitRateC","P1BenefitD","P1BenefitRateD","P1TotalBenefits","P2BenefitA","P2BenefitRateA","P2BenefitB","P2BenefitRateB","P2BenefitC","P2BenefitRateC","P2BenefitD","P2BenefitRateD","P2TotalBenefits","P3BenefitA","P3BenefitRateA","P3BenefitB","P3BenefitRateB","P3BenefitC","P3BenefitRateC","P3BenefitD","P3BenefitRateD","P3TotalBenefits","P4BenefitA","P4BenefitRateA","P4BenefitB","P4BenefitRateB","P4BenefitC","P4BenefitRateC","P4BenefitD","P4BenefitRateD","P4TotalBenefits","P5BenefitA","P5BenefitRateA","P5BenefitB","P5BenefitRateB","P5BenefitC","P5BenefitRateC","P5BenefitD","P5BenefitRateD","P5TotalBenefits","P6BenefitA","P6BenefitRateA","P6BenefitB","P6BenefitRateB","P6BenefitC","P6BenefitRateC","P6BenefitD","P6BenefitRateD","P6TotalBenefits","P7BenefitA","P7BenefitRateA","P7BenefitB","P7BenefitRateB","P7BenefitC","P7BenefitRateC","P7BenefitD","P7BenefitRateD","P7TotalBenefits","P8BenefitA","P8BenefitRateA","P8BenefitB","P8BenefitRateB","P8BenefitC","P8BenefitRateC","P8BenefitD","P8BenefitRateD","P8TotalBenefits","P9BenefitA","P9BenefitRateA","P9BenefitB","P9BenefitRateB","P9BenefitC","P9BenefitRateC","P9BenefitD","P9BenefitRateD","P9TotalBenefits","P10BenefitA","P10BenefitRateA","P10BenefitB","P10BenefitRateB","P10BenefitC","P10BenefitRateC","P10BenefitD","P10BenefitRateD","P10TotalBenefits","CP1Title","CP1RateUnit","CP1Rate/Unit","CP1TotalUnit","CP1Participants","CP1Type","CP1AnnualCost","CP2Title","CP2RateUnit","CP2Rate/Unit","CP2TotalUnit","CP2Participants","CP2Type","CP2AnnualCost","CP3Title","CP3RateUnit","CP3Rate/Unit","CP3TotalUnit","CP3Participants","CP3Type","CP3AnnualCost","CP4Title","CP4RateUnit","CP4Rate/Unit","CP4TotalUnit","CP4Participants","CP4Type","CP4AnnualCost","CP5Title","CP5RateUnit","CP5Rate/Unit","CP5TotalUnit","CP5Participants","CP5Type","CP5AnnualCost","CP6Title","CP6RateUnit","CP6Rate/Unit","CP6TotalUnit","CP6Participants","CP6Type","CP6AnnualCost","CP7Title","CP7RateUnit","CP7Rate/Unit","CP7TotalUnit","CP7Participants","CP7Type","CP7AnnualCost","CP8Title","CP8RateUnit","CP8Rate/Unit","CP8TotalUnit","CP8Participants","CP8Type","CP8AnnualCost","CP9Title","CP9RateUnit","CP9Rate/Unit","CP9TotalUnit","CP9Participants","CP9Type","CP9AnnualCost","CP10Title","CP10RateUnit","CP10Rate/Unit","CP10TotalUnit","CP10Participants","CP10Type","CP10AnnualCost","CP11Title","CP11RateUnit","CP11Rate/Unit","CP11TotalUnit","CP11Participants","CP11Type","CP11AnnualCost","CP12Title","CP12RateUnit","CP12Rate/Unit","CP12TotalUnit","CP12Participants","CP12Type","CP12AnnualCost","CP13Title","CP13RateUnit","CP13Rate/Unit","CP13TotalUnit","CP13Participants","CP13Type","CP13AnnualCost","CP14Title","CP14RateUnit","CP14Rate/Unit","CP14TotalUnit","CP14Participants","CP14Type","CP14AnnualCost","CP15Title","CP15RateUnit","CP15Rate/Unit","CP15TotalUnit","CP15Participants","CP15Type","CP15AnnualCost","CP16Title","CP16RateUnit","CP16Rate/Unit","CP16TotalUnit","CP16Participants","CP16Type","CP16AnnualCost","Consumable1","Consumable1Unit","Consumable1Cost","Consumable1NoUnits","Consumable1Total","Consumable2","Consumable2Unit","Consumable2Cost","Consumable2NoUnits","Consumable2Total","Consumable3","Consumable3Unit","Consumable3Cost","Consumable3NoUnits","Consumable3Total","MonitorEq1","MonitorEq1Unit","MonitorEq1Cost","MonitorEq1NoUnits","MonitorEq1Total","MonitorEq2","MonitorEq2Unit","MonitorEq2Cost","MonitorEq2NoUnits","MonitorEq2Total","MonitorEq3","MonitorEq3Unit","MonitorEq3Cost","MonitorEq3NoUnits","MonitorEq3Total","MonitorEq4","MonitorEq4Unit","MonitorEq4Cost","MonitorEq4NoUnits","MonitorEq4Total","ConfirmTest1","ConfirmTest1Cost","ConfirmTest1NoTests","ConfirmTest1Total","ConfirmTest2","ConfirmTest2Cost","ConfirmTest2NoTests","ConfirmTest2Total","ConfirmTest3","ConfirmTest3Cost","ConfirmTest3NoTests","ConfirmTest3Total","ConfirmTest4","ConfirmTest4Cost","ConfirmTest4NoTests","ConfirmTest4Total","Onsite1","Onsite1Company","Onsite1Panels","Onsite1Cost","Onsite1Unit","Onsite1TotalUnit","Onsite1Total","Onsite2","Onsite2Company","Onsite2Panels","Onsite2Cost","Onsite2Unit","Onsite2TotalUnit","Onsite2Total","Onsite3","Onsite3Company","Onsite3Panels","Onsite3Cost","Onsite3Unit","Onsite3TotalUnit","Onsite3Total","Onsite4","Onsite4Company","Onsite4Panels","Onsite4Cost","Onsite4Unit","Onsite4TotalUnit","Onsite4Total","Reagent1","Reagent1Company","Reagent1Cost","Reagent1Units","Reagent1TotalUnits","Reagent1Total","Reagent2","Reagent2Company","Reagent2Cost","Reagent2Units","Reagent2TotalUnits","Reagent2Total","Reagent3","Reagent3Company","Reagent3Cost","Reagent3Units","Reagent3TotalUnits","Reagent3Total","Reagent4","Reagent4Company","Reagent4Cost","Reagent4Units","Reagent4TotalUnits","Reagent4Total","Reagent5","Reagent5Company","Reagent5Cost","Reagent5Units","Reagent5TotalUnits","Reagent5Total","Reagent6","Reagent6Company","Reagent6Cost","Reagent6Units","Reagent6TotalUnits","Reagent6Total","Synthetic1","Synthetic1Company","Synthetic1Cost","Synthetic1Units","Synthetic1TotalUnits","Synthetic1Total","Synthetic2","Synthetic2Company","Synthetic2Cost","Synthetic2Units","Synthetic2TotalUnits","Synthetic2Total","Synthetic3","Synthetic3Company","Synthetic3Cost","Synthetic3Units","Synthetic3TotalUnits","Synthetic3Total","Synthetic4","Synthetic4Company","Synthetic4Cost","Synthetic4Units","Synthetic4TotalUnits","Synthetic4Total","Synthetic5","Synthetic5Company","Synthetic5Cost","Synthetic5Units","Synthetic5TotalUnits","Synthetic5Total","Synthetic6","Synthetic6Company","Synthetic6Cost","Synthetic6Units","Synthetic6TotalUnits","Synthetic6Total","Synthetic7","Synthetic7Company","Synthetic7Cost","Synthetic7Units","Synthetic7TotalUnits","Synthetic7Total","Synthetic8","Synthetic8Company","Synthetic8Cost","Synthetic8Units","Synthetic8TotalUnits","Synthetic8Total","Supply1","Supply1Cost","Supply1Units","Supply1Total","Supply2","Supply2Cost","Supply2Units","Supply2Total","Supply3","Supply3Cost","Supply3Units","Supply3Total","Supply4","Supply4Cost","Supply4Units","Supply4Total","Supply5","Supply5Cost","Supply5Units","Supply5Total","Supply6","Supply6Cost","Supply6Units","Supply6Total","Equipment1","Equipment1Cost","Equipment1Units","Equipment1Total","Equipment2","Equipment2Cost","Equipment2Units","Equipment2Total","Equipment3","Equipment3Cost","Equipment3Units","Equipment3Total","Equipment4","Equipment4Cost","Equipment4Units","Equipment4Total","Equipment5","Equipment5Cost","Equipment5Units","Equipment5Total","Equipment6","Equipment6Cost","Equipment6Units","Equipment6Total","Equipment7","Equipment7Cost","Equipment7Units","Equipment7Total","Equipment8","Equipment8Cost","Equipment8Units","Equipment8Total","Equipment9","Equipment9Cost","Equipment9Units","Equipment9Total","Equipment10","Equipment10Cost","Equipment10Units","Equipment10Total","CACJ1","CACJ1Mileage","CACJ1ParkingRequest","CACJ1NoMembers","CACJ1Nights","CACJ1Rooms","CACJ1Perdiem","CACJ1Total","CACJ2","CACJ2Mileage","CACJ2ParkingRequest","CACJ2NoMembers","CACJ2Nights","CACJ2Rooms","CACJ2Perdiem","CACJ2Total","CACJ3","CACJ3Mileage","CACJ3ParkingRequest","CACJ3NoMembers","CACJ3Nights","CACJ3Rooms","CACJ3Perdiem","CACJ3Total","CACJ4","CACJ4Mileage","CACJ4ParkingRequest","CACJ4NoMembers","CACJ4Nights","CACJ4Rooms","CACJ4Perdiem","CACJ4Total","CACJ5","CACJ5Mileage","CACJ5ParkingRequest","CACJ5NoMembers","CACJ5Nights","CACJ5Rooms","CACJ5Perdiem","CACJ5Total","CACJ6","CACJ6Mileage","CACJ6ParkingRequest","CACJ6NoMembers","CACJ6Nights","CACJ6Rooms","CACJ6Perdiem","CACJ6Total","CACJ7","CACJ7Mileage","CACJ7ParkingRequest","CACJ7NoMembers","CACJ7Nights","CACJ7Rooms","CACJ7Perdiem","CACJ7Total","CACJ8","CACJ8Mileage","CACJ8ParkingRequest","CACJ8NoMembers","CACJ8Nights","CACJ8Rooms","CACJ8Perdiem","CACJ8Total","CACJ9","CACJ9Mileage","CACJ9ParkingRequest","CACJ9NoMembers","CACJ9Nights","CACJ9Rooms","CACJ9Perdiem","CACJ9Total","CACJ10","CACJ10Mileage","CACJ10ParkingRequest","CACJ10NoMembers","CACJ10Nights","CACJ10Rooms","CACJ10Perdiem","CACJ10Total","In-State1","In-State1Mileage","In-State1Location","In-State1Travel","In-State1Training","In-State1Nights","In-State1Total","In-State1","In-State2","In-State2Mileage","In-State2Location","In-State2Travel","In-State2Training","In-State2Nights","In-State2Total","In-State2","In-State3","In-State3Mileage","In-State3Location","In-State3Travel","In-State3Training","In-State3Nights","In-State3Total","In-State3","In-State4","In-State4Mileage","In-State4Location","In-State4Travel","In-State4Training","In-State4Nights","In-State4Total","In-State4","In-State5","In-State5Mileage","In-State5Location","In-State5Travel","In-State5Training","In-State5Nights","In-State5Total","In-State5","In-State6","In-State6Mileage","In-State6Location","In-State6Travel","In-State6Training","In-State6Nights","In-State6Total","In-State6","In-State7","In-State7Mileage","In-State7Location","In-State7Travel","In-State7Training","In-State7Nights","In-State7Total","In-State7","In-State8","In-State8Mileage","In-State8Location","In-State8Travel","In-State8Training","In-State8Nights","In-State8Total","In-State8","In-State9","In-State9Mileage","In-State9Location","In-State9Travel","In-State9Training","In-State9Nights","In-State9Total","In-State9","In-State10","In-State10Mileage","In-State10Location","In-State10Travel","In-State10Training","In-State10Nights","In-State10Total","In-State10","Transport1Mode","Transport1Unit","Transport1Rate","Transport1TotalUnit","Transport1Contract","Transport1Total","Transport2Mode","Transport2Unit","Transport2Rate","Transport2TotalUnit","Transport2Contract","Transport2Total","Transport3Mode","Transport3Unit","Transport3Rate","Transport3TotalUnit","Transport3Contract","Transport3Total","Transport4Mode","Transport4Unit","Transport4Rate","Transport4TotalUnit","Transport4Contract","Transport4Total","Transport5Mode","Transport5Unit","Transport5Rate","Transport5TotalUnit","Transport5Contract","Transport5Total","Transport6Mode","Transport6Unit","Transport6Rate","Transport6TotalUnit","Transport6Contract","Transport6Total",null,null,null,null,null,null,null,null,null,null,null,null,null,null,null,null,null,null,null,null,null,null,null,null,null,null,null,null,null,null,null,null,null,null,null,null,null,null,null,null,null,null,null,null,null,null,null,"Supply1","Supply1Cost","Supply1Units","Supply1Total","Supply2","Supply2Cost","Supply2Units","Supply2Total","Supply3","Supply3Cost","Supply3Units","Supply3Total","Supply4","Supply4Cost","Supply4Units","Supply4Total","Supply5","Supply5Cost","Supply5Units","Supply5Total","Supply6","Supply6Cost","Supply6Units","Supply6Total","Equipment1","Equipment1Cost","Equipment1Units","Equipment1Total","Equipment2","Equipment2Cost","Equipment2Units","Equipment2Total","Equipment3","Equipment3Cost","Equipment3Units","Equipment3Total","Equipment4","Equipment4Cost","Equipment4Units","Equipment4Total","Equipment5","Equipment5Cost","Equipment5Units","Equipment5Total","Equipment6","Equipment6Cost","Equipment6Units","Equipment6Total","Equipment7","Equipment7Cost","Equipment7Units","Equipment7Total","Equipment8","Equipment8Cost","Equipment8Units","Equipment8Total","Equipment9","Equipment9Cost","Equipment9Units","Equipment9Total","Equipment10","Equipment10Cost","Equipment10Units","Equipment10Total","CACJ1TeamName","CACJ1Mileage","CACJ1ParkingRequest","CACJ1TeamMemb","CACJ1Nights","CACJ1Rooms","CACJ1PerDiem","CACJ1Total","CACJ2TeamName","CACJ2Mileage","CACJ2ParkingRequest","CACJ2TeamMemb","CACJ2Nights","CACJ2Rooms","CACJ2PerDiem","CACJ2Total","CACJ3TeamName","CACJ3Mileage","CACJ3ParkingRequest","CACJ3TeamMemb","CACJ3Nights","CACJ3Rooms","CACJ3PerDiem","CACJ3Total","CACJ4TeamName","CACJ4Mileage","CACJ4ParkingRequest","CACJ4TeamMemb","CACJ4Nights","CACJ4Rooms","CACJ4PerDiem","CACJ4Total","CACJ5TeamName","CACJ5Mileage","CACJ5ParkingRequest","CACJ5TeamMemb","CACJ5Nights","CACJ5Rooms","CACJ5PerDiem","CACJ5Total","CACJ6TeamName","CACJ6Mileage","CACJ6ParkingRequest","CACJ6TeamMemb","CACJ6Nights","CACJ6Rooms","CACJ6PerDiem","CACJ6Total","CACJ7TeamName","CACJ7Mileage","CACJ7ParkingRequest","CACJ7TeamMemb","CACJ7Nights","CACJ7Rooms","CACJ7PerDiem","CACJ7Total","CACJ8TeamName","CACJ8Mileage","CACJ8ParkingRequest","CACJ8TeamMemb","CACJ8Nights","CACJ8Rooms","CACJ8PerDiem","CACJ8Total","CACJ9TeamName","CACJ9Mileage","CACJ9ParkingRequest","CACJ9TeamMemb","CACJ9Nights","CACJ9Rooms","CACJ9PerDiem","CACJ9Total","CACJ10TeamName","CACJ10Mileage","CACJ10ParkingRequest","CACJ10TeamMemb","CACJ10Nights","CACJ10Rooms","CACJ10PerDiem","CACJ10Total","InState1Name","InState1Mileage","InState1Location","InState1Travel","InState1Training","InState1Hotel","InState1Total","InState2Name","InState2Mileage","InState2Location","InState2Travel","InState2Training","InState2Hotel","InState2Total","InState3Name","InState3Mileage","InState3Location","InState3Travel","InState3Training","InState3Hotel","InState3Total","InState4Name","InState4Mileage","InState4Location","InState4Travel","InState4Training","InState4Hotel","InState4Total","InState5Name","InState5Mileage","InState5Location","InState5Travel","InState5Training","InState5Hotel","InState5Total","InState6Name","InState6Mileage","InState6Location","InState6Travel","InState6Training","InState6Hotel","InState6Total","InState7Name","InState7Mileage","InState7Location","InState7Travel","InState7Training","InState7Hotel","InState7Total","InState8Total","InState8Name","InState8Mileage","InState8Location","InState8Travel","InState8Training","InState8Hotel","InState8Total","InState9Name","InState9Mileage","InState9Location","InState9Travel","InState9Training","InState9Hotel","InState9Total","InState10Name","InState10Mileage","InState10Location","InState10Travel","InState10Training","InState10Hotel","InState10Total"]
[{"$f":"'General Information'!E8","v":"Select One:"},{"$f":"'General Information'!E10","v":0},{"$f":"'General Information'!E12","v":"Select One:"},{"$f":"'General Information'!E16","v":"Select One: "},{"$f":"'General Information'!E18","v":"Select One: "},{"$f":"'General Information'!E20","v":"Select One:"},{"$f":"'General Information'!D28","v":0},{"$f":"'General Information'!E28","v":0},{"$f":"'General Information'!F28","v":0},{"$f":"'General Information'!D30","v":0},{"$f":"'General Information'!E30","v":0},{"$f":"'General Information'!F30","v":0},{"$f":"'General Information'!D32","v":0},{"$f":"'General Information'!E32","v":0},{"$f":"'General Information'!F32","v":0},{"$f":"'General Information'!D34","v":0},{"$f":"'General Information'!E34","v":0},{"$f":"'General Information'!F34","v":0},{"$f":"'General Information'!D36","v":0},{"$f":"'General Information'!E36","v":0},{"$f":"'General Information'!F36","v":0},{"$f":"'General Information'!D38","v":0},{"$f":"'General Information'!E38","v":0},{"$f":"'General Information'!F38","v":0},{"$f":"'General Information'!D40","v":0},{"$f":"'General Information'!E40","v":0},{"$f":"'General Information'!F40","v":0},{"$f":"'General Information'!D43","v":0},{"$f":"'General Information'!F43","v":0},null,{"$f":"'Other Funding Sources'!C8","v":0},{"$f":"'Other Funding Sources'!D8","v":0},{"$f":"'Other Funding Sources'!E8","v":0},{"$f":"'Other Funding Sources'!C10","v":0},{"$f":"'Other Funding Sources'!D10","v":0},{"$f":"'Other Funding Sources'!E10","v":0},{"$f":"'Other Funding Sources'!C12","v":0},{"$f":"'Other Funding Sources'!D12","v":0},{"$f":"'Other Funding Sources'!E12","v":0},{"$f":"'Other Funding Sources'!C14","v":0},{"$f":"'Other Funding Sources'!D14","v":0},{"$f":"'Other Funding Sources'!E14","v":0},{"$f":"'Other Funding Sources'!C16","v":0},{"$f":"'Other Funding Sources'!D16","v":0},{"$f":"'Other Funding Sources'!E16","v":0},{"$f":"'Other Funding Sources'!C18","v":0},{"$f":"'Other Funding Sources'!D18","v":0},{"$f":"'Other Funding Sources'!E18","v":0},{"$f":"'Other Funding Sources'!C20","v":0},{"$f":"'Other Funding Sources'!D20","v":0},{"$f":"'Other Funding Sources'!E20","v":0},{"$f":"'Other Funding Sources'!C22","v":0},{"$f":"'Other Funding Sources'!D22","v":0},{"$f":"'Other Funding Sources'!E22","v":0},{"$f":"'Other Funding Sources'!C24","v":0},{"$f":"'Other Funding Sources'!D24","v":0},{"$f":"'Other Funding Sources'!E24","v":0},{"$f":"'Other Funding Sources'!C26","v":0},{"$f":"'Other Funding Sources'!D26","v":0},{"$f":"'Other Funding Sources'!E26","v":0},{"$f":"'Other Funding Sources'!C28","v":0},{"$f":"'Other Funding Sources'!D28","v":0},{"$f":"'Other Funding Sources'!E28","v":0},{"$f":"'Other Funding Sources'!C30","v":0},{"$f":"'Other Funding Sources'!D30","v":0},{"$f":"'Other Funding Sources'!E30","v":0},{"$f":"'Other Funding Sources'!C32","v":0},{"$f":"'Other Funding Sources'!D32","v":0},{"$f":"'Other Funding Sources'!E32","v":0},{"$f":"'Other Funding Sources'!C34","v":0},{"$f":"'Other Funding Sources'!D34","v":0},{"$f":"'Other Funding Sources'!E34","v":0},{"$f":"'Personnel Request'!C8","v":"Select One: "},{"$f":"'Personnel Request'!D8","v":0},{"$f":"'Personnel Request'!E8","v":0},{"$f":"'Personnel Request'!F8","v":0},{"$f":"'Personnel Request'!G8","v":0},{"$f":"'Personnel Request'!C10","v":"Select One: "},{"$f":"'Personnel Request'!D10","v":0},{"$f":"'Personnel Request'!E10","v":0},{"$f":"'Personnel Request'!F10","v":0},{"$f":"'Personnel Request'!G10","v":0},{"$f":"'Personnel Request'!C12","v":"Select One: "},{"$f":"'Personnel Request'!D12","v":0},{"$f":"'Personnel Request'!E12","v":0},{"$f":"'Personnel Request'!F12","v":0},{"$f":"'Personnel Request'!G12","v":0},{"$f":"'Personnel Request'!C14","v":"Select One: "},{"$f":"'Personnel Request'!D14","v":0},{"$f":"'Personnel Request'!E14","v":0},{"$f":"'Personnel Request'!F14","v":0},{"$f":"'Personnel Request'!G14","v":0},{"$f":"'Personnel Request'!C16","v":"Select One: "},{"$f":"'Personnel Request'!D16","v":0},{"$f":"'Personnel Request'!E16","v":0},{"$f":"'Personnel Request'!F16","v":0},{"$f":"'Personnel Request'!G16","v":0},{"$f":"'Personnel Request'!C18","v":"Select One: "},{"$f":"'Personnel Request'!D18","v":0},{"$f":"'Personnel Request'!E18","v":0},{"$f":"'Personnel Request'!F18","v":0},{"$f":"'Personnel Request'!G18","v":0},{"$f":"'Personnel Request'!C20","v":"Select One: "},{"$f":"'Personnel Request'!D20","v":0},{"$f":"'Personnel Request'!E20","v":0},{"$f":"'Personnel Request'!F20","v":0},{"$f":"'Personnel Request'!G20","v":0},{"$f":"'Personnel Request'!C22","v":"Select One: "},{"$f":"'Personnel Request'!D22","v":0},{"$f":"'Personnel Request'!E22","v":0},{"$f":"'Personnel Request'!F22","v":0},{"$f":"'Personnel Request'!G22","v":0},{"$f":"'Personnel Request'!C24","v":"Select One: "},{"$f":"'Personnel Request'!D24","v":0},{"$f":"'Personnel Request'!E24","v":0},{"$f":"'Personnel Request'!F24","v":0},{"$f":"'Personnel Request'!G24","v":0},{"$f":"'Personnel Request'!C26","v":"Select One: "},{"$f":"'Personnel Request'!D26","v":0},{"$f":"'Personnel Request'!E26","v":0},{"$f":"'Personnel Request'!F26","v":0},{"$f":"'Personnel Request'!G26","v":0},{"$f":"'Personnel Request'!D30","v":"Select One: "},{"$f":"'Personnel Request'!E30","v":0},{"$f":"'Personnel Request'!F30","v":"Select One: "},{"$f":"'Personnel Request'!G30","v":0},{"$f":"'Personnel Request'!D31","v":"Select One: "},{"$f":"'Personnel Request'!E31","v":0},{"$f":"'Personnel Request'!F31","v":"Select One: "},{"$f":"'Personnel Request'!G31","v":0},{"$f":"'Personnel Request'!H31","v":0},{"$f":"'Personnel Request'!D33","v":"Select One: "},{"$f":"'Personnel Request'!E33","v":0},{"$f":"'Personnel Request'!F33","v":"Select One: "},{"$f":"'Personnel Request'!G33","v":0},{"$f":"'Personnel Request'!D34","v":"Select One: "},{"$f":"'Personnel Request'!E34","v":0},{"$f":"'Personnel Request'!F34","v":"Select One: "},{"$f":"'Personnel Request'!G34","v":0},{"$f":"'Personnel Request'!H34","v":0},{"$f":"'Personnel Request'!D36","v":"Select One: "},{"$f":"'Personnel Request'!E36","v":0},{"$f":"'Personnel Request'!F36","v":"Select One: "},{"$f":"'Personnel Request'!G36","v":0},{"$f":"'Personnel Request'!D37","v":"Select One: "},{"$f":"'Personnel Request'!E37","v":0},{"$f":"'Personnel Request'!F37","v":"Select One: "},{"$f":"'Personnel Request'!G37","v":0},{"$f":"'Personnel Request'!H37","v":0},{"$f":"'Personnel Request'!D39","v":"Select One: "},{"$f":"'Personnel Request'!E39","v":0},{"$f":"'Personnel Request'!F39","v":"Select One: "},{"$f":"'Personnel Request'!G39","v":0},{"$f":"'Personnel Request'!D40","v":"Select One: "},{"$f":"'Personnel Request'!E40","v":0},{"$f":"'Personnel Request'!F40","v":"Select One: "},{"$f":"'Personnel Request'!G40","v":0},{"$f":"'Personnel Request'!H40","v":0},{"$f":"'Personnel Request'!D42","v":"Select One: "},{"$f":"'Personnel Request'!E42","v":0},{"$f":"'Personnel Request'!F42","v":"Select One: "},{"$f":"'Personnel Request'!G42","v":0},{"$f":"'Personnel Request'!D43","v":"Select One: "},{"$f":"'Personnel Request'!E43","v":0},{"$f":"'Personnel Request'!F43","v":"Select One: "},{"$f":"'Personnel Request'!G43","v":0},{"$f":"'Personnel Request'!H43","v":0},{"$f":"'Personnel Request'!D45","v":"Select One: "},{"$f":"'Personnel Request'!E45","v":0},{"$f":"'Personnel Request'!F45","v":"Select One: "},{"$f":"'Personnel Request'!G45","v":0},{"$f":"'Personnel Request'!D46","v":"Select One: "},{"$f":"'Personnel Request'!E46","v":0},{"$f":"'Personnel Request'!F46","v":"Select One: "},{"$f":"'Personnel Request'!G46","v":0},{"$f":"'Personnel Request'!H46","v":0},{"$f":"'Personnel Request'!D48","v":"Select One: "},{"$f":"'Personnel Request'!E48","v":0},{"$f":"'Personnel Request'!F48","v":"Select One: "},{"$f":"'Personnel Request'!G48","v":0},{"$f":"'Personnel Request'!D49","v":"Select One: "},{"$f":"'Personnel Request'!E49","v":0},{"$f":"'Personnel Request'!F49","v":"Select One: "},{"$f":"'Personnel Request'!G49","v":0},{"$f":"'Personnel Request'!H49","v":0},{"$f":"'Personnel Request'!D51","v":"Select One: "},{"$f":"'Personnel Request'!E51","v":0},{"$f":"'Personnel Request'!F51","v":"Select One: "},{"$f":"'Personnel Request'!G51","v":0},{"$f":"'Personnel Request'!D52","v":"Select One: "},{"$f":"'Personnel Request'!E52","v":0},{"$f":"'Personnel Request'!F52","v":"Select One: "},{"$f":"'Personnel Request'!G52","v":0},{"$f":"'Personnel Request'!H52","v":0},{"$f":"'Personnel Request'!D54","v":"Select One: "},{"$f":"'Personnel Request'!E54","v":0},{"$f":"'Personnel Request'!F54","v":"Select One: "},{"$f":"'Personnel Request'!G54","v":0},{"$f":"'Personnel Request'!D55","v":"Select One: "},{"$f":"'Personnel Request'!E55","v":0},{"$f":"'Personnel Request'!F55","v":"Select One: "},{"$f":"'Personnel Request'!G55","v":0},{"$f":"'Personnel Request'!H55","v":0},{"$f":"'Personnel Request'!D57","v":"Select One: "},{"$f":"'Personnel Request'!E57","v":0},{"$f":"'Personnel Request'!F57","v":"Select One: "},{"$f":"'Personnel Request'!G57","v":0},{"$f":"'Personnel Request'!D58","v":"Select One: "},{"$f":"'Personnel Request'!E58","v":0},{"$f":"'Personnel Request'!F58","v":"Select One: "},{"$f":"'Personnel Request'!G58","v":0},{"$f":"'Personnel Request'!H58","v":0},{"$f":"'Contract Services Request'!C8","v":"Select One: "},{"$f":"'Contract Services Request'!D8","v":"Select One: "},{"$f":"'Contract Services Request'!E8","v":0},{"$f":"'Contract Services Request'!F8","v":0},{"$f":"'Contract Services Request'!G8","v":0},{"$f":"'Contract Services Request'!H8","v":"Select One: "},{"$f":"'Contract Services Request'!I8","v":0},{"$f":"'Contract Services Request'!C10","v":"Select One: "},{"$f":"'Contract Services Request'!D10","v":"Select One: "},{"$f":"'Contract Services Request'!E10","v":0},{"$f":"'Contract Services Request'!F10","v":0},{"$f":"'Contract Services Request'!G10","v":0},{"$f":"'Contract Services Request'!H10","v":"Select One: "},{"$f":"'Contract Services Request'!I10","v":0},{"$f":"'Contract Services Request'!C12","v":"Select One: "},{"$f":"'Contract Services Request'!D12","v":"Select One: "},{"$f":"'Contract Services Request'!E12","v":0},{"$f":"'Contract Services Request'!F12","v":0},{"$f":"'Contract Services Request'!G12","v":0},{"$f":"'Contract Services Request'!H12","v":"Select One: "},{"$f":"'Contract Services Request'!I12","v":0},{"$f":"'Contract Services Request'!C14","v":"Select One: "},{"$f":"'Contract Services Request'!D14","v":"Select One: "},{"$f":"'Contract Services Request'!E14","v":0},{"$f":"'Contract Services Request'!F14","v":0},{"$f":"'Contract Services Request'!G14","v":0},{"$f":"'Contract Services Request'!H14","v":"Select One: "},{"$f":"'Contract Services Request'!I14","v":0},{"$f":"'Contract Services Request'!C16","v":"Select One: "},{"$f":"'Contract Services Request'!D16","v":"Select One: "},{"$f":"'Contract Services Request'!E16","v":0},{"$f":"'Contract Services Request'!F16","v":0},{"$f":"'Contract Services Request'!G16","v":0},{"$f":"'Contract Services Request'!H16","v":"Select One: "},{"$f":"'Contract Services Request'!I16","v":0},{"$f":"'Contract Services Request'!C18","v":"Select One: "},{"$f":"'Contract Services Request'!D18","v":"Select One: "},{"$f":"'Contract Services Request'!E18","v":0},{"$f":"'Contract Services Request'!F18","v":0},{"$f":"'Contract Services Request'!G18","v":0},{"$f":"'Contract Services Request'!H18","v":"Select One: "},{"$f":"'Contract Services Request'!I18","v":0},{"$f":"'Contract Services Request'!C20","v":"Select One: "},{"$f":"'Contract Services Request'!D20","v":"Select One: "},{"$f":"'Contract Services Request'!E20","v":0},{"$f":"'Contract Services Request'!F20","v":0},{"$f":"'Contract Services Request'!G20","v":0},{"$f":"'Contract Services Request'!H20","v":"Select One: "},{"$f":"'Contract Services Request'!I20","v":0},{"$f":"'Contract Services Request'!C22","v":"Select One: "},{"$f":"'Contract Services Request'!D22","v":"Select One: "},{"$f":"'Contract Services Request'!E22","v":0},{"$f":"'Contract Services Request'!F22","v":0},{"$f":"'Contract Services Request'!G22","v":0},{"$f":"'Contract Services Request'!H22","v":"Select One: "},{"$f":"'Contract Services Request'!I22","v":0},{"$f":"'Contract Services Request'!C24","v":"Select One: "},{"$f":"'Contract Services Request'!D24","v":"Select One: "},{"$f":"'Contract Services Request'!E24","v":0},{"$f":"'Contract Services Request'!F24","v":0},{"$f":"'Contract Services Request'!G24","v":0},{"$f":"'Contract Services Request'!H24","v":"Select One: "},{"$f":"'Contract Services Request'!I24","v":0},{"$f":"'Contract Services Request'!C26","v":"Select One: "},{"$f":"'Contract Services Request'!D26","v":"Select One: "},{"$f":"'Contract Services Request'!E26","v":0},{"$f":"'Contract Services Request'!F26","v":0},{"$f":"'Contract Services Request'!G26","v":0},{"$f":"'Contract Services Request'!H26","v":"Select One: "},{"$f":"'Contract Services Request'!I26","v":0},{"$f":"'Contract Services Request'!C28","v":"Select One: "},{"$f":"'Contract Services Request'!D28","v":"Select One: "},{"$f":"'Contract Services Request'!E28","v":0},{"$f":"'Contract Services Request'!F28","v":0},{"$f":"'Contract Services Request'!G28","v":0},{"$f":"'Contract Services Request'!H28","v":"Select One: "},{"$f":"'Contract Services Request'!I28","v":0},{"$f":"'Contract Services Request'!C30","v":"Select One: "},{"$f":"'Contract Services Request'!D30","v":"Select One: "},{"$f":"'Contract Services Request'!E30","v":0},{"$f":"'Contract Services Request'!F30","v":0},{"$f":"'Contract Services Request'!G30","v":0},{"$f":"'Contract Services Request'!H30","v":"Select One: "},{"$f":"'Contract Services Request'!I30","v":0},{"$f":"'Contract Services Request'!C32","v":"Select One: "},{"$f":"'Contract Services Request'!D32","v":"Select One: "},{"$f":"'Contract Services Request'!E32","v":0},{"$f":"'Contract Services Request'!F32","v":0},{"$f":"'Contract Services Request'!G32","v":0},{"$f":"'Contract Services Request'!H32","v":"Select One: "},{"$f":"'Contract Services Request'!I32","v":0},{"$f":"'Contract Services Request'!C34","v":"Select One: "},{"$f":"'Contract Services Request'!D34","v":"Select One: "},{"$f":"'Contract Services Request'!E34","v":0},{"$f":"'Contract Services Request'!F34","v":0},{"$f":"'Contract Services Request'!G34","v":0},{"$f":"'Contract Services Request'!H34","v":"Select One: "},{"$f":"'Contract Services Request'!I34","v":0},{"$f":"'Contract Services Request'!C36","v":"Select One: "},{"$f":"'Contract Services Request'!D36","v":"Select One: "},{"$f":"'Contract Services Request'!E36","v":0},{"$f":"'Contract Services Request'!F36","v":0},{"$f":"'Contract Services Request'!G36","v":0},{"$f":"'Contract Services Request'!H36","v":"Select One: "},{"$f":"'Contract Services Request'!I36","v":0},{"$f":"'Contract Services Request'!C38","v":"Select One: "},{"$f":"'Contract Services Request'!D38","v":"Select One: "},{"$f":"'Contract Services Request'!E38","v":0},{"$f":"'Contract Services Request'!F38","v":0},{"$f":"'Contract Services Request'!G38","v":0},{"$f":"'Contract Services Request'!H38","v":"Select One: "},{"$f":"'Contract Services Request'!I38","v":0},{"$f":"'Drug Testing Supplies'!B8","v":"Select One: "},{"$f":"'Drug Testing Supplies'!C8","v":"Select One: "},{"$f":"'Drug Testing Supplies'!D8","v":0},{"$f":"'Drug Testing Supplies'!E8","v":0},{"$f":"'Drug Testing Supplies'!F8","v":0},{"$f":"'Drug Testing Supplies'!B10","v":"Select One: "},{"$f":"'Drug Testing Supplies'!C10","v":"Select One: "},{"$f":"'Drug Testing Supplies'!D10","v":0},{"$f":"'Drug Testing Supplies'!E10","v":0},{"$f":"'Drug Testing Supplies'!F10","v":0},{"$f":"'Drug Testing Supplies'!B12","v":"Select One: "},{"$f":"'Drug Testing Supplies'!C12","v":"Select One: "},{"$f":"'Drug Testing Supplies'!D12","v":0},{"$f":"'Drug Testing Supplies'!E12","v":0},{"$f":"'Drug Testing Supplies'!F12","v":0},{"$f":"'Drug Testing Supplies'!B17","v":"Select One:"},{"$f":"'Drug Testing Supplies'!C17","v":"Select One: "},{"$f":"'Drug Testing Supplies'!D17","v":0},{"$f":"'Drug Testing Supplies'!E17","v":0},{"$f":"'Drug Testing Supplies'!F17","v":0},{"$f":"'Drug Testing Supplies'!B19","v":"Select One:"},{"$f":"'Drug Testing Supplies'!C19","v":"Select One: "},{"$f":"'Drug Testing Supplies'!D19","v":0},{"$f":"'Drug Testing Supplies'!E19","v":0},{"$f":"'Drug Testing Supplies'!F19","v":0},{"$f":"'Drug Testing Supplies'!B21","v":"Select One:"},{"$f":"'Drug Testing Supplies'!C21","v":"Select One: "},{"$f":"'Drug Testing Supplies'!D21","v":0},{"$f":"'Drug Testing Supplies'!E21","v":0},{"$f":"'Drug Testing Supplies'!F21","v":0},{"$f":"'Drug Testing Supplies'!B23","v":"Select One:"},{"$f":"'Drug Testing Supplies'!C23","v":"Select One: "},{"$f":"'Drug Testing Supplies'!D23","v":0},{"$f":"'Drug Testing Supplies'!E23","v":0},{"$f":"'Drug Testing Supplies'!F23","v":0},{"$f":"'Drug Testing Supplies'!B29","v":"Select One:"},{"$f":"'Drug Testing Supplies'!C29","v":0},{"$f":"'Drug Testing Supplies'!D29","v":0},{"$f":"'Drug Testing Supplies'!E29","v":0},{"$f":"'Drug Testing Supplies'!B31","v":"Select One:"},{"$f":"'Drug Testing Supplies'!C31","v":0},{"$f":"'Drug Testing Supplies'!D31","v":0},{"$f":"'Drug Testing Supplies'!E31","v":0},{"$f":"'Drug Testing Supplies'!B33","v":"Select One:"},{"$f":"'Drug Testing Supplies'!C33","v":0},{"$f":"'Drug Testing Supplies'!D33","v":0},{"$f":"'Drug Testing Supplies'!E33","v":0},{"$f":"'Drug Testing Supplies'!B35","v":"Select One:"},{"$f":"'Drug Testing Supplies'!C35","v":0},{"$f":"'Drug Testing Supplies'!D35","v":0},{"$f":"'Drug Testing Supplies'!E35","v":0},{"$f":"'Drug Testing Supplies'!B40","v":"Select One:"},{"$f":"'Drug Testing Supplies'!C40","v":"Select One:"},{"$f":"'Drug Testing Supplies'!D40","v":"Panels Tested"},{"$f":"'Drug Testing Supplies'!E40","v":0},{"$f":"'Drug Testing Supplies'!F40","v":"Select One: "},{"$f":"'Drug Testing Supplies'!G40","v":0},{"$f":"'Drug Testing Supplies'!H40","v":0},{"$f":"'Drug Testing Supplies'!B42","v":"Select One:"},{"$f":"'Drug Testing Supplies'!C42","v":"Select One:"},{"$f":"'Drug Testing Supplies'!D42","v":"Panels Tested"},{"$f":"'Drug Testing Supplies'!E42","v":0},{"$f":"'Drug Testing Supplies'!F42","v":"Select One: "},{"$f":"'Drug Testing Supplies'!G42","v":0},{"$f":"'Drug Testing Supplies'!H42","v":0},{"$f":"'Drug Testing Supplies'!B44","v":"Select One:"},{"$f":"'Drug Testing Supplies'!C44","v":"Select One:"},{"$f":"'Drug Testing Supplies'!D44","v":"Panels Tested"},{"$f":"'Drug Testing Supplies'!E44","v":0},{"$f":"'Drug Testing Supplies'!F44","v":"Select One: "},{"$f":"'Drug Testing Supplies'!G44","v":0},{"$f":"'Drug Testing Supplies'!H44","v":0},{"$f":"'Drug Testing Supplies'!B46","v":"Select One:"},{"$f":"'Drug Testing Supplies'!C46","v":"Select One:"},{"$f":"'Drug Testing Supplies'!D46","v":"Panels Tested"},{"$f":"'Drug Testing Supplies'!E46","v":0},{"$f":"'Drug Testing Supplies'!F46","v":"Select One: "},{"$f":"'Drug Testing Supplies'!G46","v":0},{"$f":"'Drug Testing Supplies'!H46","v":0},{"$f":"'Drug Testing Supplies'!B52","v":"Select One:"},{"$f":"'Drug Testing Supplies'!C52","v":"Select One:"},{"$f":"'Drug Testing Supplies'!D52","v":0},{"$f":"'Drug Testing Supplies'!E52","v":"Select One: "},{"$f":"'Drug Testing Supplies'!F52","v":0},{"$f":"'Drug Testing Supplies'!G52","v":0},{"$f":"'Drug Testing Supplies'!B54","v":"Select One:"},{"$f":"'Drug Testing Supplies'!C54","v":"Select One:"},{"$f":"'Drug Testing Supplies'!D54","v":0},{"$f":"'Drug Testing Supplies'!E54","v":"Select One: "},{"$f":"'Drug Testing Supplies'!F54","v":0},{"$f":"'Drug Testing Supplies'!G54","v":0},{"$f":"'Drug Testing Supplies'!B56","v":"Select One:"},{"$f":"'Drug Testing Supplies'!C56","v":"Select One:"},{"$f":"'Drug Testing Supplies'!D56","v":0},{"$f":"'Drug Testing Supplies'!E56","v":"Select One: "},{"$f":"'Drug Testing Supplies'!F56","v":0},{"$f":"'Drug Testing Supplies'!G56","v":0},{"$f":"'Drug Testing Supplies'!B58","v":"Select One:"},{"$f":"'Drug Testing Supplies'!C58","v":"Select One:"},{"$f":"'Drug Testing Supplies'!D58","v":0},{"$f":"'Drug Testing Supplies'!E58","v":"Select One: "},{"$f":"'Drug Testing Supplies'!F58","v":0},{"$f":"'Drug Testing Supplies'!G58","v":0},{"$f":"'Drug Testing Supplies'!B60","v":"Select One:"},{"$f":"'Drug Testing Supplies'!C60","v":"Select One:"},{"$f":"'Drug Testing Supplies'!D60","v":0},{"$f":"'Drug Testing Supplies'!E60","v":"Select One: "},{"$f":"'Drug Testing Supplies'!F60","v":0},{"$f":"'Drug Testing Supplies'!G60","v":0},{"$f":"'Drug Testing Supplies'!B62","v":"Select One:"},{"$f":"'Drug Testing Supplies'!C62","v":"Select One:"},{"$f":"'Drug Testing Supplies'!D62","v":0},{"$f":"'Drug Testing Supplies'!E62","v":"Select One: "},{"$f":"'Drug Testing Supplies'!F62","v":0},{"$f":"'Drug Testing Supplies'!G62","v":0},{"$f":"'Drug Testing Supplies'!B70","v":"Select One:"},{"$f":"'Drug Testing Supplies'!C70","v":"Select One:"},{"$f":"'Drug Testing Supplies'!D70","v":0},{"$f":"'Drug Testing Supplies'!E70","v":"Select One: "},{"$f":"'Drug Testing Supplies'!F70","v":0},{"$f":"'Drug Testing Supplies'!G70","v":0},{"$f":"'Drug Testing Supplies'!B72","v":"Select One:"},{"$f":"'Drug Testing Supplies'!C72","v":"Select One:"},{"$f":"'Drug Testing Supplies'!D72","v":0},{"$f":"'Drug Testing Supplies'!E72","v":"Select One: "},{"$f":"'Drug Testing Supplies'!F72","v":0},{"$f":"'Drug Testing Supplies'!G72","v":0},{"$f":"'Drug Testing Supplies'!B74","v":"Select One:"},{"$f":"'Drug Testing Supplies'!C74","v":"Select One:"},{"$f":"'Drug Testing Supplies'!D74","v":0},{"$f":"'Drug Testing Supplies'!E74","v":"Select One: "},{"$f":"'Drug Testing Supplies'!F74","v":0},{"$f":"'Drug Testing Supplies'!G74","v":0},{"$f":"'Drug Testing Supplies'!B76","v":"Select One:"},{"$f":"'Drug Testing Supplies'!C76","v":"Select One:"},{"$f":"'Drug Testing Supplies'!D76","v":0},{"$f":"'Drug Testing Supplies'!E76","v":"Select One: "},{"$f":"'Drug Testing Supplies'!F76","v":0},{"$f":"'Drug Testing Supplies'!G76","v":0},{"$f":"'Drug Testing Supplies'!B78","v":"Select One:"},{"$f":"'Drug Testing Supplies'!C78","v":"Select One:"},{"$f":"'Drug Testing Supplies'!D78","v":0},{"$f":"'Drug Testing Supplies'!E78","v":"Select One: "},{"$f":"'Drug Testing Supplies'!F78","v":0},{"$f":"'Drug Testing Supplies'!G78","v":0},{"$f":"'Drug Testing Supplies'!B80","v":"Select One:"},{"$f":"'Drug Testing Supplies'!C80","v":"Select One:"},{"$f":"'Drug Testing Supplies'!D80","v":0},{"$f":"'Drug Testing Supplies'!E80","v":"Select One: "},{"$f":"'Drug Testing Supplies'!F80","v":0},{"$f":"'Drug Testing Supplies'!G80","v":0},{"$f":"'Drug Testing Supplies'!B82","v":"Select One:"},{"$f":"'Drug Testing Supplies'!C82","v":"Select One:"},{"$f":"'Drug Testing Supplies'!D82","v":0},{"$f":"'Drug Testing Supplies'!E82","v":"Select One: "},{"$f":"'Drug Testing Supplies'!F82","v":0},{"$f":"'Drug Testing Supplies'!G82","v":0},{"$f":"'Drug Testing Supplies'!B84","v":"Select One:"},{"$f":"'Drug Testing Supplies'!C84","v":"Select One:"},{"$f":"'Drug Testing Supplies'!D84","v":0},{"$f":"'Drug Testing Supplies'!E84","v":"Select One: "},{"$f":"'Drug Testing Supplies'!F84","v":0},{"$f":"'Drug Testing Supplies'!G84","v":0},{"$f":"'Non-Drug Testing Supplies'!B8","v":0},{"$f":"'Non-Drug Testing Supplies'!C8","v":0},{"$f":"'Non-Drug Testing Supplies'!D8","v":0},{"$f":"'Non-Drug Testing Supplies'!E8","v":0},{"$f":"'Non-Drug Testing Supplies'!B10","v":0},{"$f":"'Non-Drug Testing Supplies'!C10","v":0},{"$f":"'Non-Drug Testing Supplies'!D10","v":0},{"$f":"'Non-Drug Testing Supplies'!E10","v":0},{"$f":"'Non-Drug Testing Supplies'!B12","v":0},{"$f":"'Non-Drug Testing Supplies'!C12","v":0},{"$f":"'Non-Drug Testing Supplies'!D12","v":0},{"$f":"'Non-Drug Testing Supplies'!E12","v":0},{"$f":"'Non-Drug Testing Supplies'!B14","v":0},{"$f":"'Non-Drug Testing Supplies'!C14","v":0},{"$f":"'Non-Drug Testing Supplies'!D14","v":0},{"$f":"'Non-Drug Testing Supplies'!E14","v":0},{"$f":"'Non-Drug Testing Supplies'!B16","v":0},{"$f":"'Non-Drug Testing Supplies'!C16","v":0},{"$f":"'Non-Drug Testing Supplies'!D16","v":0},{"$f":"'Non-Drug Testing Supplies'!E16","v":0},{"$f":"'Non-Drug Testing Supplies'!B18","v":0},{"$f":"'Non-Drug Testing Supplies'!C18","v":0},{"$f":"'Non-Drug Testing Supplies'!D18","v":0},{"$f":"'Non-Drug Testing Supplies'!E18","v":0},{"$f":"Equipment!C8","v":0},{"$f":"Equipment!D8","v":0},{"$f":"Equipment!E8","v":0},{"$f":"Equipment!F8","v":0},{"$f":"Equipment!C10","v":0},{"$f":"Equipment!D10","v":0},{"$f":"Equipment!E10","v":0},{"$f":"Equipment!F10","v":0},{"$f":"Equipment!C12","v":0},{"$f":"Equipment!D12","v":0},{"$f":"Equipment!E12","v":0},{"$f":"Equipment!F12","v":0},{"$f":"Equipment!C14","v":0},{"$f":"Equipment!D14","v":0},{"$f":"Equipment!E14","v":0},{"$f":"Equipment!F14","v":0},{"$f":"Equipment!C16","v":0},{"$f":"Equipment!D16","v":0},{"$f":"Equipment!E16","v":0},{"$f":"Equipment!F16","v":0},{"$f":"Equipment!C18","v":0},{"$f":"Equipment!D18","v":0},{"$f":"Equipment!E18","v":0},{"$f":"Equipment!F18","v":0},{"$f":"Equipment!C20","v":0},{"$f":"Equipment!D20","v":0},{"$f":"Equipment!E20","v":0},{"$f":"Equipment!F20","v":0},{"$f":"Equipment!C22","v":0},{"$f":"Equipment!D22","v":0},{"$f":"Equipment!E22","v":0},{"$f":"Equipment!F22","v":0},{"$f":"Equipment!C24","v":0},{"$f":"Equipment!D24","v":0},{"$f":"Equipment!E24","v":0},{"$f":"Equipment!F24","v":0},{"$f":"Equipment!C26","v":0},{"$f":"Equipment!D26","v":0},{"$f":"Equipment!E26","v":0},{"$f":"Equipment!F26","v":0},{"$f":"'Training & Travel'!C9","v":"Select One:"},{"$f":"'Training & Travel'!D9","v":0},{"$f":"'Training & Travel'!E9","v":0},{"$f":"'Training & Travel'!F9","v":0},{"$f":"'Training & Travel'!G9","v":0},{"$f":"'Training & Travel'!H9","v":0},{"$f":"'Training & Travel'!I9","v":0},{"$f":"'Training & Travel'!J9","v":0},{"$f":"'Training & Travel'!C11","v":"Select One:"},{"$f":"'Training & Travel'!D11","v":0},{"$f":"'Training & Travel'!E11","v":0},{"$f":"'Training & Travel'!F11","v":0},{"$f":"'Training & Travel'!G11","v":0},{"$f":"'Training & Travel'!H11","v":0},{"$f":"'Training & Travel'!I11","v":0},{"$f":"'Training & Travel'!J11","v":0},{"$f":"'Training & Travel'!C13","v":"Select One:"},{"$f":"'Training & Travel'!D13","v":0},{"$f":"'Training & Travel'!E13","v":0},{"$f":"'Training & Travel'!F13","v":0},{"$f":"'Training & Travel'!G13","v":0},{"$f":"'Training & Travel'!H13","v":0},{"$f":"'Training & Travel'!I13","v":0},{"$f":"'Training & Travel'!J13","v":0},{"$f":"'Training & Travel'!C15","v":"Select One:"},{"$f":"'Training & Travel'!D15","v":0},{"$f":"'Training & Travel'!E15","v":0},{"$f":"'Training & Travel'!F15","v":0},{"$f":"'Training & Travel'!G15","v":0},{"$f":"'Training & Travel'!H15","v":0},{"$f":"'Training & Travel'!I15","v":0},{"$f":"'Training & Travel'!J15","v":0},{"$f":"'Training & Travel'!C17","v":"Select One:"},{"$f":"'Training & Travel'!D17","v":0},{"$f":"'Training & Travel'!E17","v":0},{"$f":"'Training & Travel'!F17","v":0},{"$f":"'Training & Travel'!G17","v":0},{"$f":"'Training & Travel'!H17","v":0},{"$f":"'Training & Travel'!I17","v":0},{"$f":"'Training & Travel'!J17","v":0},{"$f":"'Training & Travel'!C19","v":"Select One:"},{"$f":"'Training & Travel'!D19","v":0},{"$f":"'Training & Travel'!E19","v":0},{"$f":"'Training & Travel'!F19","v":0},{"$f":"'Training & Travel'!G19","v":0},{"$f":"'Training & Travel'!H19","v":0},{"$f":"'Training & Travel'!I19","v":0},{"$f":"'Training & Travel'!J19","v":0},{"$f":"'Training & Travel'!C21","v":"Select One:"},{"$f":"'Training & Travel'!D21","v":0},{"$f":"'Training & Travel'!E21","v":0},{"$f":"'Training & Travel'!F21","v":0},{"$f":"'Training & Travel'!G21","v":0},{"$f":"'Training & Travel'!H21","v":0},{"$f":"'Training & Travel'!I21","v":0},{"$f":"'Training & Travel'!J21","v":0},{"$f":"'Training & Travel'!C23","v":"Select One:"},{"$f":"'Training & Travel'!D23","v":0},{"$f":"'Training & Travel'!E23","v":0},{"$f":"'Training & Travel'!F23","v":0},{"$f":"'Training & Travel'!G23","v":0},{"$f":"'Training & Travel'!H23","v":0},{"$f":"'Training & Travel'!I23","v":0},{"$f":"'Training & Travel'!J23","v":0},{"$f":"'Training & Travel'!C25","v":"Select One:"},{"$f":"'Training & Travel'!D25","v":0},{"$f":"'Training & Travel'!E25","v":0},{"$f":"'Training & Travel'!F25","v":0},{"$f":"'Training & Travel'!G25","v":0},{"$f":"'Training & Travel'!H25","v":0},{"$f":"'Training & Travel'!I25","v":0},{"$f":"'Training & Travel'!J25","v":0},{"$f":"'Training & Travel'!C27","v":"Select One:"},{"$f":"'Training & Travel'!D27","v":0},{"$f":"'Training & Travel'!E27","v":0},{"$f":"'Training & Travel'!F27","v":0},{"$f":"'Training & Travel'!G27","v":0},{"$f":"'Training & Travel'!H27","v":0},{"$f":"'Training & Travel'!I27","v":0},{"$f":"'Training & Travel'!J27","v":0},{"$f":"'Training & Travel'!C32","v":0},{"$f":"'Training & Travel'!D32","v":0},{"$f":"'Training & Travel'!E32","v":0},{"$f":"'Training & Travel'!F32","v":0},{"$f":"'Training & Travel'!G32","v":0},{"$f":"'Training & Travel'!H32","v":0},{"$f":"'Training & Travel'!I32","v":0},{"$f":"'Training & Travel'!J32","v":0},{"$f":"'Training & Travel'!C34","v":0},{"$f":"'Training & Travel'!D34","v":0},{"$f":"'Training & Travel'!E34","v":0},{"$f":"'Training & Travel'!F34","v":0},{"$f":"'Training & Travel'!G34","v":0},{"$f":"'Training & Travel'!H34","v":0},{"$f":"'Training & Travel'!I34","v":0},{"$f":"'Training & Travel'!J34","v":0},{"$f":"'Training & Travel'!C36","v":0},{"$f":"'Training & Travel'!D36","v":0},{"$f":"'Training & Travel'!E36","v":0},{"$f":"'Training & Travel'!F36","v":0},{"$f":"'Training & Travel'!G36","v":0},{"$f":"'Training & Travel'!H36","v":0},{"$f":"'Training & Travel'!I36","v":0},{"$f":"'Training & Travel'!J36","v":0},{"$f":"'Training & Travel'!C38","v":0},{"$f":"'Training & Travel'!D38","v":0},{"$f":"'Training & Travel'!E38","v":0},{"$f":"'Training & Travel'!F38","v":0},{"$f":"'Training & Travel'!G38","v":0},{"$f":"'Training & Travel'!H38","v":0},{"$f":"'Training & Travel'!I38","v":0},{"$f":"'Training & Travel'!J38","v":0},{"$f":"'Training & Travel'!C40","v":0},{"$f":"'Training & Travel'!D40","v":0},{"$f":"'Training & Travel'!E40","v":0},{"$f":"'Training & Travel'!F40","v":0},{"$f":"'Training & Travel'!G40","v":0},{"$f":"'Training & Travel'!H40","v":0},{"$f":"'Training & Travel'!I40","v":0},{"$f":"'Training & Travel'!J40","v":0},{"$f":"'Training & Travel'!C42","v":0},{"$f":"'Training & Travel'!D42","v":0},{"$f":"'Training & Travel'!E42","v":0},{"$f":"'Training & Travel'!F42","v":0},{"$f":"'Training & Travel'!G42","v":0},{"$f":"'Training & Travel'!H42","v":0},{"$f":"'Training & Travel'!I42","v":0},{"$f":"'Training & Travel'!J42","v":0},{"$f":"'Training & Travel'!C44","v":0},{"$f":"'Training & Travel'!D44","v":0},{"$f":"'Training & Travel'!E44","v":0},{"$f":"'Training & Travel'!F44","v":0},{"$f":"'Training & Travel'!G44","v":0},{"$f":"'Training & Travel'!H44","v":0},{"$f":"'Training & Travel'!I44","v":0},{"$f":"'Training & Travel'!J44","v":0},{"$f":"'Training & Travel'!C46","v":0},{"$f":"'Training & Travel'!D46","v":0},{"$f":"'Training & Travel'!E46","v":0},{"$f":"'Training & Travel'!F46","v":0},{"$f":"'Training & Travel'!G46","v":0},{"$f":"'Training & Travel'!H46","v":0},{"$f":"'Training & Travel'!I46","v":0},{"$f":"'Training & Travel'!J46","v":0},{"$f":"'Training & Travel'!C48","v":0},{"$f":"'Training & Travel'!D48","v":0},{"$f":"'Training & Travel'!E48","v":0},{"$f":"'Training & Travel'!F48","v":0},{"$f":"'Training & Travel'!G48","v":0},{"$f":"'Training & Travel'!H48","v":0},{"$f":"'Training & Travel'!I48","v":0},{"$f":"'Training & Travel'!J48","v":0},{"$f":"'Training & Travel'!C50","v":0},{"$f":"'Training & Travel'!D50","v":0},{"$f":"'Training & Travel'!E50","v":0},{"$f":"'Training & Travel'!F50","v":0},{"$f":"'Training & Travel'!G50","v":0},{"$f":"'Training & Travel'!H50","v":0},{"$f":"'Training & Travel'!I50","v":0},{"$f":"'Training & Travel'!J50","v":0},{"$f":"'Transportation Request'!B8","v":"County Vehicle Mileage"},{"$f":"'Transportation Request'!C8","v":"Select One:"},{"$f":"'Transportation Request'!D8","v":0},{"$f":"'Transportation Request'!E8","v":0},{"$f":"'Transportation Request'!F8","v":"Contract"},{"$f":"'Transportation Request'!G8","v":0},{"$f":"'Transportation Request'!B10","v":"Driver time (County Vehicle)"},{"$f":"'Transportation Request'!C10","v":"Select One:"},{"$f":"'Transportation Request'!D10","v":0},{"$f":"'Transportation Request'!E10","v":0},{"$f":"'Transportation Request'!F10","v":"Contract"},{"$f":"'Transportation Request'!G10","v":0},{"$f":"'Transportation Request'!B12","v":"Public Transportation"},{"$f":"'Transportation Request'!C12","v":"Select One:"},{"$f":"'Transportation Request'!D12","v":0},{"$f":"'Transportation Request'!E12","v":0},{"$f":"'Transportation Request'!F12","v":"Contract"},{"$f":"'Transportation Request'!G12","v":0},{"$f":"'Transportation Request'!B14","v":"Private Transportation (Uber/Taxi)"},{"$f":"'Transportation Request'!C14","v":"Select One:"},{"$f":"'Transportation Request'!D14","v":0},{"$f":"'Transportation Request'!E14","v":0},{"$f":"'Transportation Request'!F14","v":"Contract"},{"$f":"'Transportation Request'!G14","v":0},{"$f":"'Transportation Request'!B16","v":"Bike Share"},{"$f":"'Transportation Request'!C16","v":"Select One:"},{"$f":"'Transportation Request'!D16","v":0},{"$f":"'Transportation Request'!E16","v":0},{"$f":"'Transportation Request'!F16","v":"Contract"},{"$f":"'Transportation Request'!G16","v":0},{"$f":"'Transportation Request'!B18","v":"Other"},{"$f":"'Transportation Request'!C18","v":"Select One:"},{"$f":"'Transportation Request'!D18","v":0},{"$f":"'Transportation Request'!E18","v":0},{"$f":"'Transportation Request'!F18","v":"Contract"},{"$f":"'Transportation Request'!G18","v":0},null,null,null,null,null,null,null,null,null,null,null,null,null,null,null,null,null,null,null,null,null,null,null,null,null,null,null,null,null,null,null,null,null,null,null,null,null,null,null,null,null,null,null,null,null,null,null,{"$f":"'Non-Drug Testing Supplies'!B8","v":0},{"$f":"'Non-Drug Testing Supplies'!C8","v":0},{"$f":"'Non-Drug Testing Supplies'!D8","v":0},{"$f":"'Non-Drug Testing Supplies'!E8","v":0},{"$f":"'Non-Drug Testing Supplies'!B10","v":0},{"$f":"'Non-Drug Testing Supplies'!C10","v":0},{"$f":"'Non-Drug Testing Supplies'!D10","v":0},{"$f":"'Non-Drug Testing Supplies'!E10","v":0},{"$f":"'Non-Drug Testing Supplies'!B12","v":0},{"$f":"'Non-Drug Testing Supplies'!C12","v":0},{"$f":"'Non-Drug Testing Supplies'!D12","v":0},{"$f":"'Non-Drug Testing Supplies'!E12","v":0},{"$f":"'Non-Drug Testing Supplies'!B14","v":0},{"$f":"'Non-Drug Testing Supplies'!C14","v":0},{"$f":"'Non-Drug Testing Supplies'!D14","v":0},{"$f":"'Non-Drug Testing Supplies'!E14","v":0},{"$f":"'Non-Drug Testing Supplies'!B16","v":0},{"$f":"'Non-Drug Testing Supplies'!C16","v":0},{"$f":"'Non-Drug Testing Supplies'!D16","v":0},{"$f":"'Non-Drug Testing Supplies'!E16","v":0},{"$f":"'Non-Drug Testing Supplies'!B18","v":0},{"$f":"'Non-Drug Testing Supplies'!C18","v":0},{"$f":"'Non-Drug Testing Supplies'!D18","v":0},{"$f":"'Non-Drug Testing Supplies'!E18","v":0},{"$f":"Equipment!C8","v":0},{"$f":"Equipment!D8","v":0},{"$f":"Equipment!E8","v":0},{"$f":"Equipment!F8","v":0},{"$f":"Equipment!C10","v":0},{"$f":"Equipment!D10","v":0},{"$f":"Equipment!E10","v":0},{"$f":"Equipment!F10","v":0},{"$f":"Equipment!C12","v":0},{"$f":"Equipment!D12","v":0},{"$f":"Equipment!E12","v":0},{"$f":"Equipment!F12","v":0},{"$f":"Equipment!C14","v":0},{"$f":"Equipment!D14","v":0},{"$f":"Equipment!E14","v":0},{"$f":"Equipment!F14","v":0},{"$f":"Equipment!C16","v":0},{"$f":"Equipment!D16","v":0},{"$f":"Equipment!E16","v":0},{"$f":"Equipment!F16","v":0},{"$f":"Equipment!C18","v":0},{"$f":"Equipment!D18","v":0},{"$f":"Equipment!E18","v":0},{"$f":"Equipment!F18","v":0},{"$f":"Equipment!C120","v":0},{"$f":"Equipment!D120","v":0},{"$f":"Equipment!E120","v":0},{"$f":"Equipment!F120","v":0},{"$f":"Equipment!C22","v":0},{"$f":"Equipment!D22","v":0},{"$f":"Equipment!E22","v":0},{"$f":"Equipment!F22","v":0},{"$f":"Equipment!C24","v":0},{"$f":"Equipment!D24","v":0},{"$f":"Equipment!E24","v":0},{"$f":"Equipment!F24","v":0},{"$f":"Equipment!C26","v":0},{"$f":"Equipment!D26","v":0},{"$f":"Equipment!E26","v":0},{"$f":"Equipment!F26","v":0},{"$f":"'Training & Travel'!C9","v":"Select One:"},{"$f":"'Training & Travel'!D9","v":0},{"$f":"'Training & Travel'!E9","v":0},{"$f":"'Training & Travel'!F9","v":0},{"$f":"'Training & Travel'!G9","v":0},{"$f":"'Training & Travel'!H9","v":0},{"$f":"'Training & Travel'!I9","v":0},{"$f":"'Training & Travel'!J9","v":0},{"$f":"'Training & Travel'!C11","v":"Select One:"},{"$f":"'Training & Travel'!D11","v":0},{"$f":"'Training & Travel'!E11","v":0},{"$f":"'Training & Travel'!F11","v":0},{"$f":"'Training & Travel'!G11","v":0},{"$f":"'Training & Travel'!H11","v":0},{"$f":"'Training & Travel'!I11","v":0},{"$f":"'Training & Travel'!J11","v":0},{"$f":"'Training & Travel'!C13","v":"Select One:"},{"$f":"'Training & Travel'!D13","v":0},{"$f":"'Training & Travel'!E13","v":0},{"$f":"'Training & Travel'!F13","v":0},{"$f":"'Training & Travel'!G13","v":0},{"$f":"'Training & Travel'!H13","v":0},{"$f":"'Training & Travel'!I13","v":0},{"$f":"'Training & Travel'!J13","v":0},{"$f":"'Training & Travel'!C15","v":"Select One:"},{"$f":"'Training & Travel'!D15","v":0},{"$f":"'Training & Travel'!E15","v":0},{"$f":"'Training & Travel'!F15","v":0},{"$f":"'Training & Travel'!G15","v":0},{"$f":"'Training & Travel'!H15","v":0},{"$f":"'Training & Travel'!I15","v":0},{"$f":"'Training & Travel'!J15","v":0},{"$f":"'Training & Travel'!C17","v":"Select One:"},{"$f":"'Training & Travel'!D17","v":0},{"$f":"'Training & Travel'!E17","v":0},{"$f":"'Training & Travel'!F17","v":0},{"$f":"'Training & Travel'!G17","v":0},{"$f":"'Training & Travel'!H17","v":0},{"$f":"'Training & Travel'!I17","v":0},{"$f":"'Training & Travel'!J17","v":0},{"$f":"'Training & Travel'!C19","v":"Select One:"},{"$f":"'Training & Travel'!D19","v":0},{"$f":"'Training & Travel'!E19","v":0},{"$f":"'Training & Travel'!F19","v":0},{"$f":"'Training & Travel'!G19","v":0},{"$f":"'Training & Travel'!H19","v":0},{"$f":"'Training & Travel'!I19","v":0},{"$f":"'Training & Travel'!J19","v":0},{"$f":"'Training & Travel'!C21","v":"Select One:"},{"$f":"'Training & Travel'!D21","v":0},{"$f":"'Training & Travel'!E21","v":0},{"$f":"'Training & Travel'!F21","v":0},{"$f":"'Training & Travel'!G21","v":0},{"$f":"'Training & Travel'!H21","v":0},{"$f":"'Training & Travel'!I21","v":0},{"$f":"'Training & Travel'!J21","v":0},{"$f":"'Training & Travel'!C23","v":"Select One:"},{"$f":"'Training & Travel'!D23","v":0},{"$f":"'Training & Travel'!E23","v":0},{"$f":"'Training & Travel'!F23","v":0},{"$f":"'Training & Travel'!G23","v":0},{"$f":"'Training & Travel'!H23","v":0},{"$f":"'Training & Travel'!I23","v":0},{"$f":"'Training & Travel'!J23","v":0},{"$f":"'Training & Travel'!C25","v":"Select One:"},{"$f":"'Training & Travel'!D25","v":0},{"$f":"'Training & Travel'!E25","v":0},{"$f":"'Training & Travel'!F25","v":0},{"$f":"'Training & Travel'!G25","v":0},{"$f":"'Training & Travel'!H25","v":0},{"$f":"'Training & Travel'!I25","v":0},{"$f":"'Training & Travel'!J25","v":0},{"$f":"'Training & Travel'!C27","v":"Select One:"},{"$f":"'Training & Travel'!D27","v":0},{"$f":"'Training & Travel'!E27","v":0},{"$f":"'Training & Travel'!F27","v":0},{"$f":"'Training & Travel'!G27","v":0},{"$f":"'Training & Travel'!H27","v":0},{"$f":"'Training & Travel'!I27","v":0},{"$f":"'Training & Travel'!J27","v":0},{"$f":"'Training & Travel'!C32","v":0},{"$f":"'Training & Travel'!D32","v":0},{"$f":"'Training & Travel'!E32","v":0},{"$f":"'Training & Travel'!F32","v":0},{"$f":"'Training & Travel'!G32","v":0},{"$f":"'Training & Travel'!H32","v":0},{"$f":"'Training & Travel'!I32","v":0},{"$f":"'Training & Travel'!C34","v":0},{"$f":"'Training & Travel'!D34","v":0},{"$f":"'Training & Travel'!E34","v":0},{"$f":"'Training & Travel'!F34","v":0},{"$f":"'Training & Travel'!G34","v":0},{"$f":"'Training & Travel'!H34","v":0},{"$f":"'Training & Travel'!I34","v":0},{"$f":"'Training & Travel'!C36","v":0},{"$f":"'Training & Travel'!D36","v":0},{"$f":"'Training & Travel'!E36","v":0},{"$f":"'Training & Travel'!F36","v":0},{"$f":"'Training & Travel'!G36","v":0},{"$f":"'Training & Travel'!H36","v":0},{"$f":"'Training & Travel'!I36","v":0},{"$f":"'Training & Travel'!C38","v":0},{"$f":"'Training & Travel'!D38","v":0},{"$f":"'Training & Travel'!E38","v":0},{"$f":"'Training & Travel'!F38","v":0},{"$f":"'Training & Travel'!G38","v":0},{"$f":"'Training & Travel'!H38","v":0},{"$f":"'Training & Travel'!I38","v":0},{"$f":"'Training & Travel'!C40","v":0},{"$f":"'Training & Travel'!D40","v":0},{"$f":"'Training & Travel'!E40","v":0},{"$f":"'Training & Travel'!F40","v":0},{"$f":"'Training & Travel'!G40","v":0},{"$f":"'Training & Travel'!H40","v":0},{"$f":"'Training & Travel'!I40","v":0},{"$f":"'Training & Travel'!C42","v":0},{"$f":"'Training & Travel'!D42","v":0},{"$f":"'Training & Travel'!E42","v":0},{"$f":"'Training & Travel'!F42","v":0},{"$f":"'Training & Travel'!G42","v":0},{"$f":"'Training & Travel'!H42","v":0},{"$f":"'Training & Travel'!I42","v":0},{"$f":"'Training & Travel'!C44","v":0},{"$f":"'Training & Travel'!D44","v":0},{"$f":"'Training & Travel'!E44","v":0},{"$f":"'Training & Travel'!F44","v":0},{"$f":"'Training & Travel'!G44","v":0},{"$f":"'Training & Travel'!H44","v":0},{"$f":"'Training & Travel'!I44","v":0},{"$f":"'Training & Travel'!C46","v":0},{"$f":"'Training & Travel'!D46","v":0},{"$f":"'Training & Travel'!E46","v":0},{"$f":"'Training & Travel'!F46","v":0},{"$f":"'Training & Travel'!G46","v":0},{"$f":"'Training & Travel'!H46","v":0},{"$f":"'Training & Travel'!I46","v":0},{"$f":"'Training & Travel'!J46","v":0},{"$f":"'Training & Travel'!C48","v":0},{"$f":"'Training & Travel'!D48","v":0},{"$f":"'Training & Travel'!E48","v":0},{"$f":"'Training & Travel'!F48","v":0},{"$f":"'Training & Travel'!G48","v":0},{"$f":"'Training & Travel'!H48","v":0},{"$f":"'Training & Travel'!I48","v":0},{"$f":"'Training & Travel'!C50","v":0},{"$f":"'Training & Travel'!D50","v":0},{"$f":"'Training & Travel'!E50","v":0},{"$f":"'Training & Travel'!F50","v":0},{"$f":"'Training & Travel'!G50","v":0},{"$f":"'Training & Travel'!H50","v":0},{"$f":"'Training & Travel'!I50","v":0}]
["General Information",null,null,null,null,null,"General Information",null,null,null,null,null,null,null,null,null,null,null,null,null,null,null,null,null,null,null,null,null,null,null,"Other Funding Services",null,null,null,null,null,null,null,null,null,null,null,null,null,null,null,null,null,null,null,null,null,null,null,null,null,null,null,null,null,null,null,null,null,null,null,null,null,null,null,null,null,"Personnel Request",null,null,null,null,null,null,null,null,null,null,null,null,null,null,null,null,null,null,null,null,null,null,null,null,null,null,null,null,null,null,null,null,null,null,null,null,null,null,null,null,null,null,null,null,null,null,null,null,null,null,null,null,null,null,null,null,null,null,null,null,null,null,null,null,null,null,null,null,null,null,null,null,null,null,null,null,null,null,null,null,null,null,null,null,null,null,null,null,null,null,null,null,null,null,null,null,null,null,null,null,null,null,null,null,null,null,null,null,null,null,null,null,null,null,null,null,null,null,null,null,null,null,null,null,null,null,null,null,null,null,null,null,null,null,null,null,null,null,null,"Contract Personnel",null,null,null,null,null,null,null,null,null,null,null,null,null,null,null,null,null,null,null,null,null,null,null,null,null,null,null,null,null,null,null,null,null,null,null,null,null,null,null,null,null,null,null,null,null,null,null,null,null,null,null,null,null,null,null,null,null,null,null,null,null,null,null,null,null,null,null,null,null,null,null,null,null,null,null,null,null,null,null,null,null,null,null,null,null,null,null,null,null,null,null,null,null,null,null,null,null,null,null,null,null,null,null,null,null,null,null,null,null,null,null,"Drug Testing",null,null,null,null,null,null,null,null,null,null,null,null,null,null,null,null,null,null,null,null,null,null,null,null,null,null,null,null,null,null,null,null,null,null,null,null,null,null,null,null,null,null,null,null,null,null,null,null,null,null,null,null,null,null,null,null,null,null,null,null,null,null,null,null,null,null,null,null,null,null,null,null,null,null,null,null,null,null,null,null,null,null,null,null,null,null,null,null,null,null,null,null,null,null,null,null,null,null,null,null,null,null,null,null,null,null,null,null,null,null,null,null,null,null,null,null,null,null,null,null,null,null,null,null,null,null,null,null,null,null,null,null,null,null,null,null,null,null,null,null,null,null,null,null,null,null,null,null,null,null,null,null,null,null,null,null,null,null,null,null,null,null,"Non-Drug Testing Supplies",null,null,null,null,null,null,null,null,null,null,null,null,null,null,null,null,null,null,null,null,null,null,null,null,null,null,null,null,null,null,null,null,null,null,null,null,null,null,null,null,null,null,null,null,null,null,null,null,null,null,null,null,null,null,null,null,null,null,null,null,null,null,null,"CACJ Training",null,null,null,null,null,null,null,null,null,null,null,null,null,null,null,null,null,null,null,null,null,null,null,null,null,null,null,null,null,null,null,null,null,null,null,null,null,null,null,null,null,null,null,null,null,null,null,null,null,null,null,null,null,null,null,null,null,null,null,null,null,null,null,null,null,null,null,null,null,null,null,null,null,null,null,null,null,null,null,"In-State Travel"]